Workbook

Sheet About
B2: Physiologically-Based ToxicoKinetic (PBTK) Fish model
B3: This model is a multicompartment (membrane, liver, richly perfused, slowly perfused) model that can be used to estimate uptake, distribution, and toxicity of neutral organic chemicals in fish
B4: The PBTK Fish Model is based on the publication: Celsie, A.K.D., Mackay, D., Parnis, J.M. Arnot, J.A. "A fugacity-based toxicokinetic model for narcotic organic chemicals in fish". Environ. Toxicol. Chem. 35(5), 1257-1267, 2016.
B5: https://doi.org/10.1002/etc.3270
B6: Instructions:
B7: Input values are required in Test Conditions, Organism, And Chemical sheets
B8: Inputs are indicated by coloured cells, calculated cells are white
B9: Some cells contain helpful notes. See the publication for a more detailed explanation or further guidance
B10: The 'Fish Database' sheet contains organism values for a Fathead minnow and Rainbow trout. Additional organisms can be added by the user.
B11: Once all inputs have been set, click the 'Run Model' button in the "Test Conditions' sheet
B12: Results include steady-stade fugacities and concentrations, fugacities and concentrations at each timestep, and graphs of results plotted against time, including:
C13: - Concentration (whole-body)
C14: - Concentration (lipid-normalized)
C15: - Concentration in cell membrane
C16: - Volume fraction in cell membrane
C17: - Chemical activity in cell membrane
C18: - Corresponding probability of death corresponding to each result
B19: In the 'Graphs' sheet the closest value calculated to probability of death for 50% of the population i.e., P(50) will be shown (or first calculated value greater than 50% probability of death) along with the corresponding concentration and time
B20: Any questions about the model please feel free to contact alenacelsie@trentu.ca or mparnis@trentu.ca

Sheet Test Conditions
A1: PBTK model to apply a neutral organic chemical to a fish
A3: Test Conditions | B3: Symbol | C3: Value | D3: Eqn
A4: Water concentration, mg/L, g/m3 | B4: CWMGL | C4: 20
I5: Trial is simulating: | J5: INSERT REFERENCE HERE
A6: Timestep | B6: deltat | C6: 0.05
A7: number of steps | B7: N | C7: 200
A8: Starting time | B8: TIM | C8: 0
A9: Total time hours | B9: TIMT | C9: =C7*C6 -> 10 | D9: N*deltat
A10: Print frequency, 1 in x | B10: PRINF | C10: 1

Sheet Organism
A1: INSERT FISH SPECIES HERE
A3: Organism Properties | B3: Symbol | C3: Value | D3: Equation
A4: Organism volume, cm3 | B4: VFCM | C4: 0.6
A5: Temperature, degrees C | B5: TC | C5: 20
A6: Saturation oxygen conc. mg/L | B6: LOXS | C6: =14.04-0.24*C5 -> 9.24 | D6: 14.04-0.24*TC
A7: Respiration efficiy A-G corrln | B7: EV | C7: =1/(1.85+155/Chemical!C9) -> 0.5218862715 | D7: 1/(1.85+155/Kow)
A8: Percent oxygen saturation in water | B8: POX | C8: =80 -> 80
A9: Actual oxygen concn mg/L | B9: COX | C9: =C8*C6/100 -> 7.392 | D9: POX*LOXS*100
A10: Growth Rate constant (days-1) | B10: kG | C10: =0.00001 -> 1e-05
A11: Gill Ventilation Rate L/day A-G | B11: GVLD | C11: =1400*(C17^0.65)/C9 -> 1.524629751 | D11: 1400*(masskg^0.65)/COX
A12: Gill Ventilation Rate m3/h | B12: GVLM | C12: =C11/24/1000 -> 6.352623963e-05 | D12: GVLD/24/1000
A13: Water respiration rate (m3/h) | B13: GR | C13: =C12*C7 -> 3.315347235e-05 | D13: EV*GVLM
A14: Weibull slope factor | B14: S | C14: =5 -> 5
A15: Respiration rate constant (hour-1) | B15: kv | C15: =C7*C12*1000/C17 -> 55.25578725 | D15: EV*GVLM*1000/masskg
A16: Respiration rate constant (day-1) | B16: k1 | C16: =C15*24 -> 1326.138894 | D16: kv*24
A17: Organism mass kg | B17: masskg | C17: =C4/1000 -> 0.0006 | D17: VFCM/1 000
A18: Organism total volume, m3 | B18: VFT | C18: =C4/1000000 -> 6e-07 | D18: VFCM/1 000 000
A19: Compartment volume fractions | B19: VFx
A20: Vol. fraction membrane | B20: VFM | C20: 0.01
A21: Vol. fraction liver | B21: VFL | C21: 0.013
A22: Vol. fraction fast | B22: VFF | C22: 0.07
A23: Vol fraction slow | B23: VFS | C23: 0.907
A24: Vol. fraction total | C24: =SUM(C20:C23) -> 1
A25: Compartment Lipid Fraction | B25: LCx
A26: Lipid compartment - membrane | B26: LCM | C26: 1
A27: Lipid compartment - Liver | B27: LCL | C27: 0.035
A28: Lipid compartment - Fast | B28: LCF | C28: 0.03
A29: Lipid compartment - Slow | B29: LCS | C29: 0.06
A30: Blood lipid fraction | B30: LCB | C30: 0.0125
A31: Compartment lipid volumes m3 | B31: VLx
A32: Membrane | B32: VLM | C32: =C26*C20*C18 -> 6e-09 | D32: LCM*VFM*VFT
A33: Liver | B33: VLL | C33: =C27*C21*C18 -> 2.73e-10 | D33: LCL*VFL*VFT
A34: Fast | B34: VLF | C34: =C28*C22*C18 -> 1.26e-09 | D34: LCF*VFF*VFT
A35: slow | B35: VLS | C35: =C29*C23*C18 -> 3.2652e-08 | D35: LCS*VFS*VFT
A36: Selected Toxic endpoints | B36: CBRxx
A37: CBR wet wt mmol/kg | B37: CBRWW | C37: 8
A38: CBR lipid wt mmol/kg | B38: CBRLW | C38: 120
A39: Conc membrane mmol/kg | B39: CBRLM | C39: 91
A40: Vol frn lipid membrane % | B40: CBRVF | C40: 1.3
A41: Chemical activity in membrane | B41: CBRAC | C41: 0.046
A42: Corresponding fugacity endpoints | B42: FXxx
A43: CBR wet wt mmol/kg | B43: FXWW | C43: =C37/Chemical!C34 -> 9.084350305 | D43: CBRWW/Zt
A44: CBR lipid wt mmol/kg | B44: FXLW | C44: =C38/Chemical!C28 -> 2.201365188 | D44: CBRLW/Zo
A45: Conc membrane mmol/kg | B45: FXLM | C45: =C39/Chemical!C30 -> 1.669368601 | D45: CBRLM/Zm
A46: Vol frn lipid membrane % | B46: FXVF | C46: =C40/100/Chemical!C7/Chemical!C30*10^6 -> 1.615726481 | D46: CBRVF/100/MV/Zm*10^6
A47: Compartment volumes cm3 | E47: Compartment volumes (m3)
A48: membrane | C48: =C4*C20 -> 0.006 | D48: VFCM*VFM | E48: =C48/10^6 -> 6e-09
A49: liver | C49: =C4*C21 -> 0.0078 | D49: VFCM*VFL | E49: =C49/10^6 -> 7.8e-09
A50: fast | C50: =C4*C22 -> 0.042 | D50: VFCM*VFF | E50: =C50/10^6 -> 4.2e-08
A51: slow | C51: =C4*C23 -> 0.5442 | D51: VFCM*VFS | E51: =C51/10^6 -> 5.442e-07
A52: total | C52: =C48+C49+C50+C51 -> 0.6 | D52: SUM(Compartment Volumes) | E52: =E48+E49+E50+E51 -> 6e-07
A53: Compartment lipid volumes cm3 | E53: Compartment lipid volumes (m3)
A54: membrane | C54: =C32*10^6 -> 0.006 | D54: VLM*10^6 | E54: =C54/10^6 -> 6e-09
A55: liver | C55: =C33*10^6 -> 0.000273 | D55: VLL*10^6 | E55: =C55/10^6 -> 2.73e-10
A56: fast | C56: =C34*10^6 -> 0.00126 | D56: VLF*10^6 | E56: =C56/10^6 -> 1.26e-09
A57: slow | C57: =C35*10^6 -> 0.032652 | D57: VLS*10^6 | E57: =C57/10^6 -> 3.2652e-08
A58: total | C58: =C54+C55+C56+C57 -> 0.040185 | D58: SUM(Compartment Volumes) | E58: =E54+E55+E56+E57 -> 4.0185e-08
A59: Fraction Total Lipid in fish | C59: =C58/C4 -> 0.066975 | D59: Lipid volume total/VFCM

Sheet Chemical
A1: CEFIC Biouptake Model
A3: Chemical Properties | B3: Symbol | C3: Value | D3: Equation
A4: Chemical name | B4: NAME | C4: Naphthalene
A5: Molar Mass, g/mol | B5: MW | C5: 128.2
A6: Liquid vapour pressure (Pa) | B6: VPL | C6: 36.2
A7: Molar Volume (cm3/mol) | B7: MV | C7: 147.6
A8: Henry's Law constant (Pa m3/mol) | B8: H | C8: 43
A9: Octanol-Water partition ratio | B9: Kow | C9: 2344
A10: Air-Water partition ratio | B10: Kaw | C10: =C8/(8.314*(273.15+Organism!C5)) -> 0.01764284168 | D10: H/(8.314*(273.15+TC))
A11: Liquid solubility mol/m3 | B11: SOLY | C11: 0.8427
A12: Scaling factors for Kow to each compartment | B12: KLWOEQx
A13: Membrane | B13: KLWOEQM | C13: =1 -> 1
A14: Liver | B14: KLWOEQL | C14: =1 -> 1
A15: Fast | B15: KLWOEQF | C15: =1 -> 1
A16: Slow | B16: KLWOEQS | C16: =1 -> 1
A17: Lipid-W partn coeffs ie KLWOEx*Kow | B17: KLWx
A18: Membrane | B18: KLWM | C18: =$C$9*C13 -> 2344 | D18: Kow*KLWOEQM
A19: Liver | B19: KLWL | C19: =$C$9*C14 -> 2344 | D19: Kow*KLWOEQL
A20: Fast | B20: KLWF | C20: =$C$9*C15 -> 2344 | D20: Kow*KLWOEQF
A21: Slow | B21: KLWS | C21: =$C$9*C16 -> 2344 | D21: Kow*KLWOEQS
A22: Metabolic halflife, whole body days | B22: TAUM | C22: 500
A23: Metab rate constant, h-1 whole body | B23: kM | C23: =0.693/C22/24 -> 5.775e-05 | D23: 0.693/TAUM/24
A24: Metab rate const in liver (m3/h) | B24: kML | C24: =C23*C72/C69 -> 0.008500673077 | D24: kM*VZT/Fraction of Lipid in Liver
A25: Z-Values (mol/m3 Pa) | B25: Zx
A26: air | B26: Za | C26: =1/(8.314*(273.15+Organism!C5)) -> 0.0004102986437 | D26: 1/(8.314*(273.15+TC)
A27: water | B27: Zw | C27: =C26/C10 -> 0.02325581395 | D27: Za/Kaw
A28: octanol | B28: Zo | C28: =C27*C9 -> 54.51162791 | D28: Zw*Kow
A29: blood | B29: Zb | C29: =C27+Organism!C30*C28 -> 0.7046511628 | D29: Zw+LCB*Zo
A30: membrane | B30: Zm | C30: =C27*C18*Organism!C26 -> 54.51162791 | D30: Zw*KLWM*LCM
A31: liver | B31: ZL | C31: =C27*C19*Organism!C27 -> 1.907906977 | D31: Zw*KLWL*LCL
A32: fast | B32: Zf | C32: =C27*C20*Organism!C28 -> 1.635348837 | D32: Zw*KLWF*LCF
A33: slow | B33: Zs | C33: =C27*C21*Organism!C29 -> 3.270697674 | D33: Zw*KLWS*LCS
B34: Zt | C34: =(C30*Organism!C20)+(Chemical!C31*Organism!C21)+(Chemical!C32*Organism!C22)+(Chemical!C33*Organism!C29) -> 0.8806353488 | D34: (Zm*VFM)+(ZL*VFL)+(Zf*VFF)+(Zs*VFS)
A35: Concentration in Water (mol/m3) | B35: Cw | C35: ='Test Conditions'!C4/Chemical!C5 -> 0.1560062402 | D35: CWMGL/MW
A36: Fugacity in Water (Pa) | B36: fw | C36: =C35/C27 -> 6.708268331 | D36: Cw/Zw
A37: Percent cardiac output to each compartment | B37: %Gx
A38: Membrane | B38: %Gm | C38: 7
A39: Liver | B39: %GL | C39: 3
A40: Fast | B40: %Gf | C40: 25
A41: Slow | B41: %Gs | C41: 65
A42: Blood Flow Rates (cm3/hr) | B42: Gx
A43: Total Cardiac output | B43: Gt | C43: 1.646
A44: Membrane | B44: Gm | C44: =$C$43*C38/100 -> 0.11522 | D44: Gm=Gt * %Gm
A45: Liver | B45: GL | C45: =$C$43*C39/100 -> 0.04938 | D45: GL=Gt * %GL
A46: Fast | B46: Gf | C46: =$C$43*C40/100 -> 0.4115 | D46: Gf=Gt * %Gf
A47: Slow | B47: Gs | C47: =$C$43*C41/100 -> 1.0699 | D47: Gs=Gt * %Gs
A48: Blood Flow Rates (m3/h) | B48: Gx
A49: Total Cardiac output | B49: Gt | C49: =C43/1000000 -> 1.646e-06
A50: Membrane | B50: Gm | C50: =C44/1000000 -> 1.1522e-07 | D50: Gm/1 000 000
A51: Liver | B51: GL | C51: =C45/1000000 -> 4.938e-08 | D51: GL/1 000 000
A52: Fast | B52: Gf | C52: =C46/1000000 -> 4.115e-07 | D52: Gf/1 000 000
A53: Slow | B53: Gs | C53: =C47/1000000 -> 1.0699e-06 | D53: Gs/1 000 000
A54: Compartment Blood Residence Times (h) | B54: CTTBx | C54: (Characteristic Access Times)
A55: Membrane | B55: CTTBM | C55: =Organism!E48/Chemical!C50 -> 0.05207429266 | D55: CTTbm=VFm/Gm
A56: Liver | B56: CTTBL | C56: =Organism!E49/C51 -> 0.1579586877 | D56: CTTbL=VFL/GL
A57: Fast | B57: CTTBF | C57: =Organism!E50/Chemical!C52 -> 0.1020656136 | D57: CTTbf=VFf/Gf
A58: Slow | B58: CTTBS | C58: =Organism!E51/Chemical!C53 -> 0.5086456678 | D58: CTTbs=VFs/Gs
A59: D-Values ie G*ZB (mol/h*Pa)
A60: Membrane to Blood | B60: DBM | C60: =$C$29*C50 -> 8.118990698e-08 | D60: Zb*Gm
A61: Liver to blood | B61: DBL | C61: =$C$29*C51 -> 3.479567442e-08 | D61: Zb*Gl
A62: Fast to Blood | B62: DBF | C62: =$C$29*C52 -> 2.899639535e-07 | D62: Zb*Gf
A63: Slow to Blood | B63: DBS | C63: =$C$29*C53 -> 7.539062791e-07 | D63: Zb*Gs
A64: Metabolism in Liver | B64: DML | C64: =Organism!E49*C31*C24 -> 1.265042491e-10 | D64: (VFCM*VFL)/10^6 *ZL*kML
A65: Respiration intake, ZW*GVLM*EV | B65: DR | C65: =C27*Organism!C12*Organism!C7 -> 7.710109848e-07 | D65: Zw*GVLM*EV
A66: Gills | B66: DG | C66: =(C65*Organism!C7)/(1-Organism!C7) -> 8.41599026e-07 | D66: (DR*EV)/(1-EV)
A67: VZ capacity terms of compartments (mol/Pa)
A68: VZ of membrane | B68: VZM | C68: =Organism!C18*Organism!C20*C30 -> 3.270697674e-07 | D68: VFT*VFM*Zm
A69: VZ of liver | B69: VZL | C69: =Organism!C18*Organism!C21*C31 -> 1.488167442e-08 | D69: VFT*VFL*ZL
A70: VZof fast responding | B70: VZF | C70: =Organism!C18*Organism!C22*C32 -> 6.868465116e-08 | D70: VFT*VFF*Zf
A71: VZ of slow responding | B71: VZS | C71: =C33*Organism!C23*Organism!C18 -> 1.779913674e-06 | D71: VFT*VFS*Zs
A72: VZ total | B72: VZT | C72: =SUM(C68:C71) -> 2.190549767e-06 | D72: SUM(VZM:VZS)
A73: Char uptake times VZ/D (h)
A74: VZ/D of membrane | C74: =C68/C60 -> 4.028453531 | D74: VZM/DBM
A75: VZ/D of liver | C75: =C69/C61 -> 0.4276874832 | D75: VZL/DBL
A76: VZ/D of fast responding | C76: =C70/C62 -> 0.2368730676 | D76: VZF/DBF
A77: VZ/D of slow responding | C77: =C71/C63 -> 2.360921674 | D77: VZS/DBS
A78: VZ/DM of liver | C78: =C69/C64 -> 117.6377436 | D78: VZL/DML
A79: VZ/Total D of liver | C79: =C69/(C61+C64) -> 0.4261382017 | D79: VZL/(DBL+DML)

Sheet Steady State Output
A1: Steady-State Output
A3: Steady-state fugacities (Pa) | B3: Symbol | C3: Value | D3: Equation | F3: Concentrations | G3: mol/m3 | H3: Equation | I3: g/m3 | J3: Equation
A4: water | B4: FW | C4: =Chemical!C35/Chemical!C27 -> 6.708268331 | D4: Cw/Zw | F4: water | G4: =C4*Chemical!C27 -> 0.1560062402 | H4: fw*Zw | I4: =G4*Chemical!$C$5 -> 20 | J4: mol/m3*g/mol
A5: liver | B5: FL | C5: =C4/(1+Chemical!C64*(1/Chemical!C65+1/Chemical!C66+1/Chemical!C61)) -> 6.681874782 | D5: Fw/[(1+DML)*(1/DR+1/DG+1/DBL)] | F5: liver | G5: =C5*Chemical!C31 -> 12.74839551 | H5: fL*ZL | I5: =G5*Chemical!$C$5 -> 1634.344305 | J5: "
A6: blood | B6: FB | C6: =C5*(1+(Chemical!C64/Chemical!C61)) -> 6.706167616 | D6: FL*(1+(DML/DBL)) | F6: blood | G6: =C6*Chemical!C29 -> 4.725508809 | H6: fB*Zb | I6: =G6*Chemical!$C$5 -> 605.8102293 | J6: "
A7: membrane | B7: FM | C7: =C6 -> 6.706167616 | D7: FB | F7: membrane | G7: =C7*Chemical!C30 -> 365.5641138 | H7: fm*Zm | I7: =G7*Chemical!$C$5 -> 46865.31939 | J7: "
A8: fast reacting tissue | B8: FF | C8: =C6 -> 6.706167616 | D8: FB | F8: fast reacting tissue | G8: =C8*Chemical!C32 -> 10.96692341 | H8: Ff*Zf | I8: =G8*Chemical!$C$5 -> 1405.959582 | J8: "
A9: slow reacting tissue | B9: FS | C9: =C6 -> 6.706167616 | D9: FB | F9: slow reacting tissue | G9: =C9*Chemical!C33 -> 21.93384683 | H9: Fs*Zs | I9: =G9*Chemical!$C$5 -> 2811.919163 | J9: "
A10: gills | B10: FG | C10: =((Chemical!C65*'Steady State Output'!C4)+('Steady State Output'!C6*Chemical!C66))/(Chemical!C66+Chemical!C65) -> 6.707171997 | D10: (Fw*DR)+(FB*DG)/(DR+DG)
A13: Mass Balance Checks (mol/h)
A14: Input to Gill from Water | B14: = | C14: =(C4*Chemical!C65) -> 5.172148572e-06
A15: Input to Gill from Blood | B15: = | C15: =(C6*Chemical!C66) -> 5.643904134e-06
A16: Output to Water from Gill | B16: = | C16: =(C10*Chemical!C66) -> 5.64474942e-06
A17: Output to Blood from Gill | B17: = | C17: =(Chemical!C65*'Steady State Output'!C10) -> 5.171303287e-06
A18: Gill (input-output) | B18: = | C18: =(C14+C15)-(C16+C17) -> 0
A19: Input to Blood from Gill | B19: = | C19: =(C10*Chemical!C66) -> 5.64474942e-06
A20: Input to Blood from Membrane | B20: = | C20: =C7*Chemical!C60 -> 5.444731249e-07
A21: Input to Blood from Liver | B21: = | C21: =(Chemical!C61*'Steady State Output'!C5) -> 2.325003394e-07
A22: Input to Blood from Fast | B22: = | C22: =C8*Chemical!C62 -> 1.944546875e-06
A23: Input to Blood from Slow | B23: = | C23: =C9*Chemical!C63 -> 5.055821874e-06
A24: Output to Gills from Blood | B24: = | C24: =(Chemical!C66*'Steady State Output'!C6) -> 5.643904134e-06
A25: Output to Membrane from Blood | B25: = | C25: =C6*Chemical!C60 -> 5.444731249e-07
A26: Output to Liver from Blood | B26: = | C26: =(C6*Chemical!C61) -> 2.33345625e-07
A27: Output to Fast from Blood | B27: = | C27: =C6*Chemical!C62 -> 1.944546875e-06
A28: Output to Slow from Blood | B28: = | C28: =C6*Chemical!C63 -> 5.055821874e-06
A29: Blood (input-output) | B29: = | C29: =SUM(C19:C23)-SUM(C24:C28) -> 0
A30: Input to Liver from Blood | B30: = | C30: =C6*Chemical!C61 -> 2.33345625e-07
A31: Flow output from Liver | B31: = | C31: =C5*Chemical!C61 -> 2.325003394e-07
A32: Liver Metabolism | B32: = | C32: =Chemical!C64*C5 -> 8.452855517e-10
A33: Liver (input-output) | B33: = | C33: =C30-(C31+C32) -> 0

Sheet Fugacities
A1: Fugacities (Pa) over time (h)
B2: TIM | C2: Fw | D2: Fg | E2: Fb | F2: Fm | G2: FL | H2: Ff | I2: Fs
B3: 0.05 | C3: 6.708268331 | D3: 3.207315183 | E3: 1.348655628 | F3: 0.01673912443 | G3: 0.1576683538 | H3: 0.2846789721 | I3: 0.02856205784
B4: 0.1 | C4: 6.708268331 | D4: 3.91116004 | E4: 1.700040087 | F4: 0.03763176873 | G4: 0.3379166156 | H4: 0.5834383728 | I4: 0.06396090329
B5: 0.15 | C5: 6.708268331 | D5: 4.094542766 | E5: 1.837749776 | F5: 0.05997431278 | G5: 0.5131151752 | H5: 0.8482028342 | I5: 0.1015265051
B6: 0.2 | C6: 6.708268331 | D6: 4.166411562 | E6: 1.924430694 | F6: 0.08311540633 | G6: 0.6778908673 | H6: 1.075376795 | I6: 0.1401322795
B7: 0.25 | C7: 6.708268331 | D7: 4.211649143 | E7: 1.994710373 | F7: 0.1068415716 | G7: 0.8315492038 | H7: 1.269432959 | I7: 0.1794088492
B8: 0.3 | C8: 6.708268331 | D8: 4.248327143 | E8: 2.056675941 | F8: 0.1310423464 | G8: 0.9744226311 | H8: 1.435606976 | I8: 0.2191659304
B9: 0.35 | C9: 6.708268331 | D9: 4.280666121 | E9: 2.11279026 | F9: 0.1556392312 | G9: 1.107092516 | H9: 1.578549205 | I9: 0.2592694279
B10: 0.4 | C10: 6.708268331 | D10: 4.309951415 | E10: 2.164223948 | F10: 0.1805692017 | G10: 1.230208868 | H10: 1.702175489 | I10: 0.2996128781
B11: 0.45 | C11: 6.708268331 | D11: 4.33679395 | E11: 2.211769851 | F11: 0.2057798803 | G11: 1.344438117 | H11: 1.809742459 | I11: 0.3401088631
B12: 0.5 | C12: 6.708268331 | D12: 4.361607504 | E12: 2.2560503 | F12: 0.2312272489 | G12: 1.450441254 | H12: 1.903950687 | I12: 0.3806849961
B13: 0.55 | C13: 6.708268331 | D13: 4.384716863 | E13: 2.297575557 | F13: 0.2568741739 | G13: 1.54886137 | H13: 1.987038409 | I13: 0.4212812298
B14: 0.6 | C14: 6.708268331 | D14: 4.406388324 | E14: 2.33676892 | F14: 0.2826892138 | G14: 1.640315585 | H14: 2.060860755 | I14: 0.4618477533
B15: 0.65 | C15: 6.708268331 | D15: 4.426842802 | E15: 2.373982738 | F15: 0.3086457551 | G15: 1.725389804 | H15: 2.126955644 | I15: 0.5023432726
B16: 0.7 | C16: 6.708268331 | D16: 4.446264183 | E16: 2.409510695 | F16: 0.3347210884 | G16: 1.804635519 | H16: 2.186598358 | I16: 0.542733588
B17: 0.75 | C17: 6.708268331 | D17: 4.464805736 | E17: 2.443597782 | F17: 0.3608958423 | G17: 1.878568157 | H17: 2.2408467 | I17: 0.5829904126
B18: 0.8 | C18: 6.708268331 | D18: 4.482595319 | E18: 2.476448532 | F18: 0.3871534765 | G18: 1.947666577 | H18: 2.290578363 | I18: 0.6230903901
B19: 0.85 | C19: 6.708268331 | D19: 4.499739674 | E19: 2.508233845 | F19: 0.4134797156 | G19: 2.012373436 | H19: 2.336521848 | I19: 0.6630142782
B20: 0.9 | C20: 6.708268331 | D20: 4.516327993 | E20: 2.539096635 | F20: 0.4398622513 | G20: 2.073096157 | H20: 2.379282046 | I20: 0.7027462688
B21: 0.95 | C21: 6.708268331 | D21: 4.532434859 | E21: 2.569156529 | F21: 0.4662904441 | G21: 2.130208345 | H21: 2.41936142 | I21: 0.7422734222
B22: 1 | C22: 6.708268331 | D22: 4.548122705 | E22: 2.598513763 | F22: 0.4927549958 | G22: 2.184051488 | H22: 2.457177526 | I22: 0.7815851952
B23: 1.05 | C23: 6.708268331 | D23: 4.563443843 | E23: 2.627252417 | F23: 0.5192477703 | G23: 2.234936835 | H23: 2.493077532 | I23: 0.820673049
B24: 1.1 | C24: 6.708268331 | D24: 4.578442152 | E24: 2.655443103 | F24: 0.5457615852 | G24: 2.283147372 | H24: 2.527350228 | I24: 0.8595301207
B25: 1.15 | C25: 6.708268331 | D25: 4.593154483 | E25: 2.683145198 | F25: 0.5722901821 | G25: 2.32893982 | H25: 2.560235978 | I25: 0.8981509503
B26: 1.2 | C26: 6.708268331 | D26: 4.607611827 | E26: 2.71040871 | F26: 0.5988278985 | G26: 2.372546629 | H26: 2.591934966 | I26: 0.9365312528
B27: 1.25 | C27: 6.708268331 | D27: 4.621840279 | E27: 2.737275811 | F27: 0.625369668 | G27: 2.414177901 | H27: 2.622614023 | I27: 0.9746677268
B28: 1.3 | C28: 6.708268331 | D28: 4.63586185 | E28: 2.76378213 | F28: 0.6519110203 | G28: 2.454023253 | H28: 2.652412283 | I28: 1.012557895
B29: 1.35 | C29: 6.708268331 | D29: 4.649695134 | E29: 2.789957825 | F29: 0.6784478426 | G29: 2.49225358 | H29: 2.68144588 | I29: 1.050199973
B30: 1.4 | C30: 6.708268331 | D30: 4.66335587 | E30: 2.815828471 | F30: 0.7049763799 | G30: 2.529022715 | H30: 2.70981183 | I30: 1.087592753
B31: 1.45 | C31: 6.708268331 | D31: 4.676857405 | E31: 2.841415803 | F31: 0.7314932346 | G31: 2.564468982 | H31: 2.737591259 | I31: 1.124735515
B32: 1.5 | C32: 6.708268331 | D32: 4.690211082 | E32: 2.86673834 | F32: 0.7579953074 | G32: 2.59871664 | H32: 2.764852079 | I32: 1.161627947
B33: 1.55 | C33: 6.708268331 | D33: 4.703426567 | E33: 2.891811902 | F33: 0.7844796181 | G33: 2.631877218 | H33: 2.791651205 | I33: 1.198270076
B34: 1.6 | C34: 6.708268331 | D34: 4.716512114 | E34: 2.916650034 | F34: 0.8109434843 | G34: 2.664050743 | H34: 2.818036397 | I34: 1.234662219
B35: 1.65 | C35: 6.708268331 | D35: 4.729474795 | E35: 2.941264377 | F35: 0.8373844028 | G35: 2.695326866 | H35: 2.844047792 | I35: 1.270804929
B36: 1.7 | C36: 6.708268331 | D36: 4.742320682 | E36: 2.965664967 | F36: 0.8637999892 | G36: 2.725785893 | H36: 2.869719173 | I36: 1.306698962
B37: 1.75 | C37: 6.708268331 | D37: 4.755055015 | E37: 2.989860485 | F37: 0.8901880383 | G37: 2.75549972 | H37: 2.895079024 | I37: 1.342345243
B38: 1.8 | C38: 6.708268331 | D38: 4.767682324 | E38: 3.01385847 | F38: 0.9165464044 | G38: 2.784532691 | H38: 2.920151407 | I38: 1.377744834
B39: 1.85 | C39: 6.708268331 | D39: 4.780206543 | E39: 3.037665496 | F39: 0.9428731203 | G39: 2.812942369 | H39: 2.944956694 | I39: 1.412898915
B40: 1.9 | C40: 6.708268331 | D40: 4.792631103 | E40: 3.061287321 | F40: 0.9691662788 | G40: 2.840780234 | H40: 2.969512172 | I40: 1.447808765
B41: 1.95 | C41: 6.708268331 | D41: 4.804959009 | E41: 3.084729014 | F41: 0.9954240322 | G41: 2.86809232 | H41: 2.993832548 | I41: 1.48247574
B42: 2 | C42: 6.708268331 | D42: 4.817192907 | E42: 3.107995052 | F42: 1.021644592 | G42: 2.894919784 | H42: 3.017930371 | I42: 1.516901264
B43: 2.05 | C43: 6.708268331 | D43: 4.829335133 | E43: 3.131089417 | F43: 1.047826409 | G43: 2.921299416 | H43: 3.04181638 | I43: 1.551086814
B44: 2.1 | C44: 6.708268331 | D44: 4.841387765 | E44: 3.154015672 | F44: 1.073967814 | G44: 2.94726411 | H44: 3.065499801 | I44: 1.585033914
B45: 2.15 | C45: 6.708268331 | D45: 4.853352663 | E45: 3.176777011 | F45: 1.100067258 | G45: 2.97284327 | H45: 3.088988586 | I45: 1.618744119
B46: 2.2 | C46: 6.708268331 | D46: 4.865231493 | E46: 3.199376324 | F46: 1.126123309 | G46: 2.998063191 | H46: 3.112289618 | I46: 1.652219017
B47: 2.25 | C47: 6.708268331 | D47: 4.877025764 | E47: 3.221816238 | F47: 1.152134418 | G47: 3.022947389 | H47: 3.135408882 | I47: 1.685460213
B48: 2.3 | C48: 6.708268331 | D48: 4.888736847 | E48: 3.244099148 | F48: 1.178099275 | G48: 3.047516898 | H48: 3.158351606 | I48: 1.718469333
B49: 2.35 | C49: 6.708268331 | D49: 4.900365992 | E49: 3.266227261 | F49: 1.204016566 | G49: 3.071790547 | H49: 3.181122378 | I49: 1.751248013
B50: 2.4 | C50: 6.708268331 | D50: 4.911914351 | E50: 3.288202618 | F50: 1.229884863 | G50: 3.09578519 | H50: 3.203725252 | I50: 1.783797899
B51: 2.45 | C51: 6.708268331 | D51: 4.923382988 | E51: 3.310027107 | F51: 1.255702972 | G51: 3.119515927 | H51: 3.226163821 | I51: 1.81612064
B52: 2.5 | C52: 6.708268331 | D52: 4.934772889 | E52: 3.331702501 | F52: 1.281469703 | G52: 3.142996292 | H52: 3.248441297 | I52: 1.84821789
B53: 2.55 | C53: 6.708268331 | D53: 4.946084979 | E53: 3.353230461 | F53: 1.307183743 | G53: 3.166238426 | H53: 3.270560562 | I53: 1.880091302
B54: 2.6 | C54: 6.708268331 | D54: 4.957320126 | E54: 3.374612552 | F54: 1.332844019 | G54: 3.189253227 | H54: 3.292524222 | I54: 1.911742526
B55: 2.65 | C55: 6.708268331 | D55: 4.968479146 | E55: 3.395850263 | F55: 1.358449459 | G55: 3.212050491 | H55: 3.314334646 | I55: 1.943173212
B56: 2.7 | C56: 6.708268331 | D56: 4.979562815 | E56: 3.416945009 | F56: 1.383998871 | G56: 3.234639027 | H56: 3.335994002 | I56: 1.974385001
B57: 2.75 | C57: 6.708268331 | D57: 4.990571874 | E57: 3.437898141 | F57: 1.409491301 | G57: 3.257026771 | H57: 3.357504286 | I57: 2.005379531
B58: 2.8 | C58: 6.708268331 | D58: 5.001507026 | E58: 3.458710959 | F58: 1.434925675 | G58: 3.279220879 | H58: 3.378867347 | I58: 2.036158431
B59: 2.85 | C59: 6.708268331 | D59: 5.01236895 | E59: 3.479384711 | F59: 1.460300922 | G59: 3.301227812 | H59: 3.400084905 | I59: 2.066723322
B60: 2.9 | C60: 6.708268331 | D60: 5.023158297 | E60: 3.499920601 | F60: 1.485616088 | G60: 3.323053414 | H60: 3.421158575 | I60: 2.097075817
B61: 2.95 | C61: 6.708268331 | D61: 5.033875696 | E61: 3.520319795 | F61: 1.510870218 | G61: 3.344702982 | H61: 3.442089874 | I61: 2.12721752
B62: 3 | C62: 6.708268331 | D62: 5.044521755 | E62: 3.540583428 | F62: 1.536062479 | G62: 3.366181321 | H62: 3.46288024 | I62: 2.157150023
B63: 3.05 | C63: 6.708268331 | D63: 5.055097067 | E63: 3.560712606 | F63: 1.561191797 | G63: 3.387492804 | H63: 3.483531039 | I63: 2.186874909
B64: 3.1 | C64: 6.708268331 | D64: 5.065602209 | E64: 3.5807084 | F64: 1.586257458 | G64: 3.408641415 | H64: 3.504043578 | I64: 2.216393752
B65: 3.15 | C65: 6.708268331 | D65: 5.076037739 | E65: 3.600571865 | F65: 1.611258507 | G65: 3.429630793 | H65: 3.524419108 | I65: 2.245708111
B66: 3.2 | C66: 6.708268331 | D66: 5.086404209 | E66: 3.620304027 | F66: 1.636194229 | G66: 3.450464271 | H66: 3.544658834 | I66: 2.274819536
B67: 3.25 | C67: 6.708268331 | D67: 5.096702154 | E67: 3.639905899 | F67: 1.661063671 | G67: 3.471144911 | H67: 3.56476392 | I67: 2.303729567
B68: 3.3 | C68: 6.708268331 | D68: 5.106932101 | E68: 3.659378465 | F68: 1.685866117 | G68: 3.491675527 | H68: 3.584735491 | I68: 2.33243973
B69: 3.35 | C69: 6.708268331 | D69: 5.117094567 | E69: 3.678722701 | F69: 1.710600853 | G69: 3.51205872 | H69: 3.604574641 | I69: 2.360951539
B70: 3.4 | C70: 6.708268331 | D70: 5.127190057 | E70: 3.697939564 | F70: 1.735267162 | G70: 3.532296896 | H70: 3.624282437 | I70: 2.389266498
B71: 3.45 | C71: 6.708268331 | D71: 5.137219074 | E71: 3.717029999 | F71: 1.759864211 | G71: 3.55239229 | H71: 3.643859919 | I71: 2.417386099
B72: 3.5 | C72: 6.708268331 | D72: 5.14718211 | E72: 3.73599493 | F72: 1.784391403 | G72: 3.572346984 | H72: 3.663308101 | I72: 2.445311821
B73: 3.55 | C73: 6.708268331 | D73: 5.157079648 | E73: 3.754835277 | F73: 1.808848023 | G73: 3.59216292 | H73: 3.682627979 | I73: 2.473045131
B74: 3.6 | C74: 6.708268331 | D74: 5.166912166 | E74: 3.773551944 | F74: 1.833233356 | G74: 3.61184192 | H74: 3.701820529 | I74: 2.500587485
B75: 3.65 | C75: 6.708268331 | D75: 5.176680137 | E75: 3.79214582 | F75: 1.857546806 | G75: 3.631385697 | H75: 3.720886709 | I75: 2.527940327
B76: 3.7 | C76: 6.708268331 | D76: 5.186384026 | E76: 3.810617789 | F76: 1.881787777 | G76: 3.650795864 | H76: 3.739827461 | I76: 2.555105088
B77: 3.75 | C77: 6.708268331 | D77: 5.196024293 | E77: 3.828968726 | F77: 1.905955672 | G77: 3.670073949 | H77: 3.758643713 | I77: 2.582083188
B78: 3.8 | C78: 6.708268331 | D78: 5.205601395 | E78: 3.847199493 | F78: 1.930049777 | G78: 3.689221401 | H78: 3.777336378 | I78: 2.608876036
B79: 3.85 | C79: 6.708268331 | D79: 5.215115782 | E79: 3.865310939 | F79: 1.954069734 | G79: 3.708239597 | H79: 3.795906358 | I79: 2.635485028
B80: 3.9 | C80: 6.708268331 | D80: 5.224567897 | E80: 3.883303915 | F80: 1.978014827 | G80: 3.727129853 | H80: 3.814354541 | I80: 2.661911548
B81: 3.95 | C81: 6.708268331 | D81: 5.233958185 | E81: 3.901179254 | F81: 2.001884699 | G81: 3.745893429 | H81: 3.832681807 | I81: 2.68815697
B82: 4 | C82: 6.708268331 | D82: 5.243287079 | E82: 3.91893779 | F82: 2.025678635 | G82: 3.764531533 | H82: 3.850889023 | I82: 2.714222655
B83: 4.05 | C83: 6.708268331 | D83: 5.252555015 | E83: 3.936580336 | F83: 2.049396276 | G83: 3.783045326 | H83: 3.868977047 | I83: 2.740109953
B84: 4.1 | C84: 6.708268331 | D84: 5.261762417 | E84: 3.954107709 | F84: 2.073036909 | G84: 3.80143593 | H84: 3.886946726 | I84: 2.765820204
B85: 4.15 | C85: 6.708268331 | D85: 5.270909712 | E85: 3.971520706 | F85: 2.096600294 | G85: 3.819704428 | H85: 3.904798899 | I85: 2.791354734
B86: 4.2 | C86: 6.708268331 | D86: 5.279997317 | E86: 3.988820133 | F86: 2.120085955 | G86: 3.837851869 | H86: 3.922534397 | I86: 2.816714859
B87: 4.25 | C87: 6.708268331 | D87: 5.28902565 | E87: 4.006006781 | F87: 2.143493414 | G87: 3.855879273 | H87: 3.940154041 | I87: 2.841901885
B88: 4.3 | C88: 6.708268331 | D88: 5.297995126 | E88: 4.023081434 | F88: 2.166822433 | G88: 3.87378763 | H88: 3.957658647 | I88: 2.866917106
B89: 4.35 | C89: 6.708268331 | D89: 5.306906153 | E89: 4.040044876 | F89: 2.190072298 | G89: 3.891577908 | H89: 3.975049022 | I89: 2.891761806
B90: 4.4 | C90: 6.708268331 | D90: 5.31575914 | E90: 4.056897867 | F90: 2.213242769 | G90: 3.909251048 | H90: 3.992325964 | I90: 2.916437255
B91: 4.45 | C91: 6.708268331 | D91: 5.324554485 | E91: 4.073641176 | F91: 2.236333609 | G91: 3.926807972 | H91: 4.009490265 | I91: 2.940944716
B92: 4.5 | C92: 6.708268331 | D92: 5.333292588 | E92: 4.090275568 | F92: 2.259344101 | G92: 3.944249582 | H92: 4.026542711 | I92: 2.96528544
B93: 4.55 | C93: 6.708268331 | D93: 5.341973849 | E93: 4.106801783 | F93: 2.282274246 | G93: 3.961576762 | H93: 4.043484078 | I93: 2.989460667
B94: 4.6 | C94: 6.708268331 | D94: 5.350598654 | E94: 4.123220578 | F94: 2.305123568 | G94: 3.978790381 | H94: 4.060315139 | I94: 3.013471627
B95: 4.65 | C95: 6.708268331 | D95: 5.359167397 | E95: 4.139532689 | F95: 2.327891827 | G95: 3.99589129 | H95: 4.077036658 | I95: 3.037319539
B96: 4.7 | C96: 6.708268331 | D96: 5.367680464 | E96: 4.155738854 | F96: 2.350578547 | G96: 4.012880327 | H96: 4.093649394 | I96: 3.061005613
B97: 4.75 | C97: 6.708268331 | D97: 5.376138239 | E97: 4.171839796 | F97: 2.373183489 | G97: 4.029758319 | H97: 4.110154099 | I97: 3.084531048
B98: 4.8 | C98: 6.708268331 | D98: 5.3845411 | E98: 4.187836238 | F98: 2.395706415 | G98: 4.046526077 | H98: 4.126551518 | I98: 3.107897033
B99: 4.85 | C99: 6.708268331 | D99: 5.392889423 | E99: 4.203728899 | F99: 2.418147087 | G99: 4.063184402 | H99: 4.142842391 | I99: 3.131104746
B100: 4.9 | C100: 6.708268331 | D100: 5.401183585 | E100: 4.219518493 | F100: 2.440505266 | G100: 4.079734086 | H100: 4.159027452 | I100: 3.154155357
B101: 4.95 | C101: 6.708268331 | D101: 5.409423957 | E101: 4.235205726 | F101: 2.462780476 | G101: 4.096175908 | H101: 4.17510743 | I101: 3.177050025
B102: 5 | C102: 6.708268331 | D102: 5.417610909 | E102: 4.250791292 | F102: 2.484972715 | G102: 4.112510639 | H102: 4.191083046 | I102: 3.1997899
B103: 5.05 | C103: 6.708268331 | D103: 5.425744802 | E103: 4.266275892 | F103: 2.507081747 | G103: 4.12873904 | H103: 4.206955016 | I103: 3.222376121
B104: 5.1 | C104: 6.708268331 | D104: 5.433826002 | E104: 4.281660217 | F104: 2.529107332 | G104: 4.144861864 | H104: 4.222724052 | I104: 3.24480982
B105: 5.15 | C105: 6.708268331 | D105: 5.44185487 | E105: 4.296944951 | F105: 2.551049232 | G105: 4.160879856 | H105: 4.238390861 | I105: 3.267092116
B106: 5.2 | C106: 6.708268331 | D106: 5.449831763 | E106: 4.312130772 | F106: 2.572907209 | G106: 4.176793753 | H106: 4.253956141 | I106: 3.289224122
B107: 5.25 | C107: 6.708268331 | D107: 5.457757034 | E107: 4.327218353 | F107: 2.594681263 | G107: 4.192604283 | H107: 4.269420586 | I107: 3.31120694
B108: 5.3 | C108: 6.708268331 | D108: 5.465631036 | E108: 4.342208369 | F108: 2.616371155 | G108: 4.208312169 | H108: 4.284784887 | I108: 3.333041664
B109: 5.35 | C109: 6.708268331 | D109: 5.473454119 | E109: 4.357101483 | F109: 2.637976646 | G109: 4.223918125 | H109: 4.300049728 | I109: 3.354729376
B110: 5.4 | C110: 6.708268331 | D110: 5.481226631 | E110: 4.37189835 | F110: 2.659497499 | G110: 4.239422859 | H110: 4.315215788 | I110: 3.376271153
B111: 5.45 | C111: 6.708268331 | D111: 5.488948913 | E111: 4.386599621 | F111: 2.680933714 | G111: 4.254827072 | H111: 4.330283739 | I111: 3.397668061
B112: 5.5 | C112: 6.708268331 | D112: 5.496621304 | E112: 4.40120595 | F112: 2.70228529 | G112: 4.270131459 | H112: 4.345254248 | I112: 3.418921157
B113: 5.55 | C113: 6.708268331 | D113: 5.504244147 | E113: 4.415717987 | F113: 2.723551989 | G113: 4.285336709 | H113: 4.360127982 | I113: 3.44003149
B114: 5.6 | C114: 6.708268331 | D114: 5.511817779 | E114: 4.430136368 | F114: 2.744733572 | G114: 4.300443506 | H114: 4.374905598 | I114: 3.461000099
B115: 5.65 | C115: 6.708268331 | D115: 5.519342535 | E115: 4.444461723 | F115: 2.76583004 | G115: 4.315452525 | H115: 4.38958775 | I115: 3.481828016
B116: 5.7 | C116: 6.708268331 | D116: 5.526818741 | E116: 4.458694684 | F116: 2.786841393 | G116: 4.330364437 | H116: 4.404175084 | I116: 3.502516264
B117: 5.75 | C117: 6.708268331 | D117: 5.534246728 | E117: 4.472835882 | F117: 2.807767391 | G117: 4.345179908 | H117: 4.418668247 | I117: 3.523065858
B118: 5.8 | C118: 6.708268331 | D118: 5.541626825 | E118: 4.486885931 | F118: 2.828608036 | G118: 4.359899599 | H118: 4.433067876 | I118: 3.543477803
B119: 5.85 | C119: 6.708268331 | D119: 5.548959352 | E119: 4.50084545 | F119: 2.849363327 | G119: 4.374524164 | H119: 4.447374604 | I119: 3.563753097
B120: 5.9 | C120: 6.708268331 | D120: 5.556244634 | E120: 4.514715053 | F120: 2.870033264 | G120: 4.389054251 | H120: 4.461589063 | I120: 3.583892731
B121: 5.95 | C121: 6.708268331 | D121: 5.563482989 | E121: 4.528495351 | F121: 2.890617609 | G121: 4.403490507 | H121: 4.475711877 | I121: 3.603897686
B122: 6 | C122: 6.708268331 | D122: 5.570674738 | E122: 4.54218694 | F122: 2.911116362 | G122: 4.417833569 | H122: 4.489743667 | I122: 3.623768935
B123: 6.05 | C123: 6.708268331 | D123: 5.57782019 | E123: 4.555790418 | F123: 2.931529522 | G123: 4.432084072 | H123: 4.503685048 | I123: 3.643507444
B124: 6.1 | C124: 6.708268331 | D124: 5.584919658 | E124: 4.56930638 | F124: 2.95185709 | G124: 4.446242644 | H124: 4.517536629 | I124: 3.663114171
B125: 6.15 | C125: 6.708268331 | D125: 5.591973453 | E125: 4.582735417 | F125: 2.972099066 | G125: 4.46030991 | H125: 4.531299019 | I125: 3.682590066
B126: 6.2 | C126: 6.708268331 | D126: 5.598981884 | E126: 4.596078116 | F126: 2.992255449 | G126: 4.47428649 | H126: 4.544972818 | I126: 3.701936071
B127: 6.25 | C127: 6.708268331 | D127: 5.605945255 | E127: 4.609335057 | F127: 3.012326241 | G127: 4.488172998 | H127: 4.558558626 | I127: 3.721153121
B128: 6.3 | C128: 6.708268331 | D128: 5.61286387 | E128: 4.622506818 | F128: 3.03231144 | G128: 4.501970044 | H128: 4.572057035 | I128: 3.740242142
B129: 6.35 | C129: 6.708268331 | D129: 5.619738032 | E129: 4.635593972 | F129: 3.052210808 | G129: 4.515678234 | H129: 4.585468635 | I129: 3.759204055
B130: 6.4 | C130: 6.708268331 | D130: 5.626568038 | E130: 4.648597076 | F130: 3.072024584 | G130: 4.529298167 | H130: 4.598794009 | I130: 3.778039772
B131: 6.45 | C131: 6.708268331 | D131: 5.633354179 | E131: 4.661516701 | F131: 3.091753006 | G131: 4.54283044 | H131: 4.612033735 | I131: 3.796750196
B132: 6.5 | C132: 6.708268331 | D132: 5.640096754 | E132: 4.674353417 | F132: 3.111395836 | G132: 4.556275645 | H132: 4.625188393 | I132: 3.815336226
B133: 6.55 | C133: 6.708268331 | D133: 5.64679606 | E133: 4.687107772 | F133: 3.130953074 | G133: 4.56963437 | H133: 4.638258553 | I133: 3.833798752
B134: 6.6 | C134: 6.708268331 | D134: 5.653452383 | E134: 4.699780314 | F134: 3.150424957 | G134: 4.582907197 | H134: 4.651244783 | I134: 3.852138656
B135: 6.65 | C135: 6.708268331 | D135: 5.660066008 | E135: 4.712371598 | F135: 3.169811487 | G135: 4.596094704 | H135: 4.664147646 | I135: 3.870356816
B136: 6.7 | C136: 6.708268331 | D136: 5.666637226 | E136: 4.724882167 | F136: 3.189112663 | G136: 4.609197468 | H136: 4.676967702 | I136: 3.888454099
B137: 6.75 | C137: 6.708268331 | D137: 5.673166321 | E137: 4.73731256 | F137: 3.208328485 | G137: 4.622216056 | H137: 4.689705507 | I137: 3.906431367
B138: 6.8 | C138: 6.708268331 | D138: 5.679653572 | E138: 4.749663308 | F138: 3.227459192 | G138: 4.635151036 | H138: 4.70236161 | I138: 3.924289476
B139: 6.85 | C139: 6.708268331 | D139: 5.686099258 | E139: 4.761934951 | F139: 3.246504545 | G139: 4.648002969 | H139: 4.714936561 | I139: 3.942029275
B140: 6.9 | C140: 6.708268331 | D140: 5.69250366 | E140: 4.774128006 | F140: 3.265465021 | G140: 4.660772411 | H140: 4.727430899 | I140: 3.959651603
B141: 6.95 | C141: 6.708268331 | D141: 5.698867048 | E141: 4.78624301 | F141: 3.284340382 | G141: 4.673459916 | H141: 4.739845166 | I141: 3.977157296
B142: 7 | C142: 6.708268331 | D142: 5.705189702 | E142: 4.798280474 | F142: 3.303130865 | G142: 4.686066035 | H142: 4.752179896 | I142: 3.994547182
B143: 7.05 | C143: 6.708268331 | D143: 5.711471889 | E143: 4.810240919 | F143: 3.32183671 | G143: 4.698591311 | H143: 4.764435621 | I143: 4.011822082
B144: 7.1 | C144: 6.708268331 | D144: 5.717713881 | E144: 4.822124864 | F144: 3.340457916 | G144: 4.711036286 | H144: 4.776612869 | I144: 4.028982812
B145: 7.15 | C145: 6.708268331 | D145: 5.723915949 | E145: 4.833932817 | F145: 3.358994484 | G145: 4.7234015 | H145: 4.788712165 | I145: 4.04603018
B146: 7.2 | C146: 6.708268331 | D146: 5.730078358 | E146: 4.845665279 | F146: 3.377446651 | G146: 4.735687484 | H146: 4.800734029 | I146: 4.062964988
B147: 7.25 | C147: 6.708268331 | D147: 5.736201369 | E147: 4.857322756 | F147: 3.395814419 | G147: 4.747894768 | H147: 4.812678976 | I147: 4.079788032
B148: 7.3 | C148: 6.708268331 | D148: 5.742285246 | E148: 4.868905743 | F148: 3.414098024 | G148: 4.760023879 | H148: 4.82454752 | I148: 4.0965001
B149: 7.35 | C149: 6.708268331 | D149: 5.748330248 | E149: 4.880414739 | F149: 3.432297468 | G149: 4.772075339 | H149: 4.836340169 | I149: 4.113101978
B150: 7.4 | C150: 6.708268331 | D150: 5.754336635 | E150: 4.891850232 | F150: 3.450412989 | G150: 4.784049665 | H150: 4.848057428 | I150: 4.12959444
B151: 7.45 | C151: 6.708268331 | D151: 5.760304661 | E151: 4.903212712 | F151: 3.468444824 | G151: 4.795947371 | H151: 4.859699799 | I151: 4.145978259
B152: 7.5 | C152: 6.708268331 | D152: 5.766234584 | E152: 4.91450267 | F152: 3.486392975 | G152: 4.807768971 | H152: 4.871267782 | I152: 4.1622542
B153: 7.55 | C153: 6.708268331 | D153: 5.772126658 | E153: 4.925720582 | F153: 3.504257441 | G153: 4.81951497 | H153: 4.882761871 | I153: 4.178423021
B154: 7.6 | C154: 6.708268331 | D154: 5.777981132 | E154: 4.93686692 | F154: 3.52203846 | G154: 4.831185871 | H154: 4.894182554 | I154: 4.194485474
B155: 7.65 | C155: 6.708268331 | D155: 5.783798253 | E155: 4.947942158 | F155: 3.539736271 | G155: 4.842782175 | H155: 4.905530321 | I155: 4.210442308
B156: 7.7 | C156: 6.708268331 | D156: 5.789578268 | E156: 4.958946774 | F156: 3.557351112 | G156: 4.854304376 | H156: 4.916805653 | I156: 4.226294262
B157: 7.75 | C157: 6.708268331 | D157: 5.795321426 | E157: 4.969881237 | F157: 3.574882984 | G157: 4.865752969 | H157: 4.928009034 | I157: 4.242042074
B158: 7.8 | C158: 6.708268331 | D158: 5.801027972 | E158: 4.980746007 | F158: 3.592332125 | G158: 4.877128443 | H158: 4.93914094 | I158: 4.257686471
B159: 7.85 | C159: 6.708268331 | D159: 5.806698146 | E159: 4.991541546 | F159: 3.609698772 | G159: 4.888431282 | H159: 4.950201844 | I159: 4.273228178
B160: 7.9 | C160: 6.708268331 | D160: 5.81233219 | E160: 5.002268317 | F160: 3.626982927 | G160: 4.899661971 | H160: 4.961192218 | I160: 4.288667914
B161: 7.95 | C161: 6.708268331 | D161: 5.817930344 | E161: 5.012926766 | F161: 3.644184828 | G161: 4.910820987 | H161: 4.972112529 | I161: 4.304006391
B162: 8 | C162: 6.708268331 | D162: 5.823492843 | E162: 5.023517348 | F162: 3.661304712 | G162: 4.921908806 | H162: 4.982963238 | I162: 4.319244316
B163: 8.05 | C163: 6.708268331 | D163: 5.829019922 | E163: 5.034040511 | F163: 3.678342819 | G163: 4.932925899 | H163: 4.993744809 | I163: 4.334382391
B164: 8.1 | C164: 6.708268331 | D164: 5.834511816 | E164: 5.044496705 | F164: 3.695299149 | G164: 4.943872736 | H164: 5.004457697 | I164: 4.349421313
B165: 8.15 | C165: 6.708268331 | D165: 5.83996876 | E165: 5.054886364 | F165: 3.712173939 | G165: 4.954749782 | H165: 5.015102358 | I165: 4.364361771
B166: 8.2 | C166: 6.708268331 | D166: 5.84539098 | E166: 5.065209927 | F166: 3.728967428 | G166: 4.965557499 | H166: 5.025679239 | I166: 4.379204453
B167: 8.25 | C167: 6.708268331 | D167: 5.850778706 | E167: 5.075467832 | F167: 3.745679855 | G167: 4.976296344 | H167: 5.036188791 | I167: 4.393950037
B168: 8.3 | C168: 6.708268331 | D168: 5.856132166 | E168: 5.085660513 | F168: 3.76231122 | G168: 4.986966774 | H168: 5.046631456 | I168: 4.408599199
B169: 8.35 | C169: 6.708268331 | D169: 5.861451587 | E169: 5.095788393 | F169: 3.778862 | G169: 4.997569241 | H169: 5.057007675 | I169: 4.423152608
B170: 8.4 | C170: 6.708268331 | D170: 5.866737188 | E170: 5.105851908 | F170: 3.795332193 | G170: 5.008104194 | H170: 5.067317887 | I170: 4.43761093
B171: 8.45 | C171: 6.708268331 | D171: 5.871989198 | E171: 5.115851474 | F171: 3.81172204 | G171: 5.018572078 | H171: 5.077562527 | I171: 4.451974823
B172: 8.5 | C172: 6.708268331 | D172: 5.877207835 | E172: 5.125787512 | F172: 3.828031778 | G172: 5.028973335 | H172: 5.087742027 | I172: 4.466244943
B173: 8.55 | C173: 6.708268331 | D173: 5.882393317 | E173: 5.135660442 | F173: 3.844261646 | G173: 5.039308407 | H173: 5.097856814 | I173: 4.480421938
B174: 8.6 | C174: 6.708268331 | D174: 5.887545863 | E174: 5.145470678 | F174: 3.860411882 | G174: 5.049577728 | H174: 5.107907316 | I174: 4.494506453
B175: 8.65 | C175: 6.708268331 | D175: 5.89266569 | E175: 5.155218634 | F175: 3.876482725 | G175: 5.059781733 | H175: 5.117893955 | I175: 4.508499127
B176: 8.7 | C176: 6.708268331 | D176: 5.897753015 | E176: 5.164904719 | F176: 3.892474174 | G176: 5.069920852 | H176: 5.127817153 | I176: 4.522400597
B177: 8.75 | C177: 6.708268331 | D177: 5.90280805 | E177: 5.174529333 | F177: 3.908386707 | G177: 5.079995511 | H177: 5.137677324 | I177: 4.53621149
B178: 8.8 | C178: 6.708268331 | D178: 5.907831004 | E178: 5.184092885 | F178: 3.924220324 | G178: 5.090006136 | H178: 5.147474884 | I178: 4.549932432
B179: 8.85 | C179: 6.708268331 | D179: 5.91282209 | E179: 5.193595769 | F179: 3.9399755 | G179: 5.099953148 | H179: 5.157210242 | I179: 4.563564043
B180: 8.9 | C180: 6.708268331 | D180: 5.917781515 | E180: 5.203038391 | F180: 3.955652237 | G180: 5.109836965 | H180: 5.166883809 | I180: 4.577106939
B181: 8.95 | C181: 6.708268331 | D181: 5.92270949 | E181: 5.212421139 | F181: 3.971250772 | G181: 5.119658001 | H181: 5.176495989 | I181: 4.590561731
B182: 9 | C182: 6.708268331 | D182: 5.927606217 | E182: 5.221744403 | F182: 3.986771584 | G182: 5.12941667 | H182: 5.186047183 | I182: 4.603929025
B183: 9.05 | C183: 6.708268331 | D183: 5.932471901 | E183: 5.231008582 | F183: 4.002214909 | G183: 5.139113382 | H183: 5.195537793 | I183: 4.617209423
B184: 9.1 | C184: 6.708268331 | D184: 5.937306748 | E184: 5.240214065 | F184: 4.017580509 | G184: 5.148748544 | H184: 5.204968218 | I184: 4.630403521
B185: 9.15 | C185: 6.708268331 | D185: 5.942110964 | E185: 5.249361218 | F185: 4.032868862 | G185: 5.158322558 | H185: 5.214338848 | I185: 4.643511912
B186: 9.2 | C186: 6.708268331 | D186: 5.946884737 | E186: 5.258450427 | F186: 4.048080444 | G186: 5.167835825 | H186: 5.223650075 | I186: 4.656535184
B187: 9.25 | C187: 6.708268331 | D187: 5.95162827 | E187: 5.267482081 | F187: 4.063215256 | G187: 5.177288745 | H187: 5.232902289 | I187: 4.669473921
B188: 9.3 | C188: 6.708268331 | D188: 5.956341767 | E188: 5.276456548 | F188: 4.078273773 | G188: 5.186681712 | H188: 5.242095875 | I188: 4.682328702
B189: 9.35 | C189: 6.708268331 | D189: 5.961025418 | E189: 5.285374211 | F189: 4.093255997 | G189: 5.19601512 | H189: 5.251231219 | I189: 4.695100102
B190: 9.4 | C190: 6.708268331 | D190: 5.965679424 | E190: 5.294235432 | F190: 4.108162403 | G190: 5.205289359 | H190: 5.260308699 | I190: 4.707788692
B191: 9.45 | C191: 6.708268331 | D191: 5.970303973 | E191: 5.303040587 | F191: 4.122992992 | G191: 5.214504816 | H191: 5.269328696 | I191: 4.720395038
B192: 9.5 | C192: 6.708268331 | D192: 5.974899263 | E192: 5.311790032 | F192: 4.137747765 | G192: 5.223661876 | H192: 5.278291584 | I192: 4.732919701
B193: 9.55 | C193: 6.708268331 | D193: 5.979465478 | E193: 5.32048412 | F193: 4.152427673 | G193: 5.232760919 | H193: 5.287197733 | I193: 4.74536324
B194: 9.6 | C194: 6.708268331 | D194: 5.984002803 | E194: 5.329123236 | F194: 4.167032242 | G194: 5.241802325 | H194: 5.296047516 | I194: 4.757726209
B195: 9.65 | C195: 6.708268331 | D195: 5.988511439 | E195: 5.337707715 | F195: 4.181562424 | G195: 5.25078647 | H195: 5.304841297 | I195: 4.770009155
B196: 9.7 | C196: 6.708268331 | D196: 5.992991561 | E196: 5.346237935 | F196: 4.196018219 | G196: 5.25971373 | H196: 5.313579445 | I196: 4.782212626
B197: 9.75 | C197: 6.708268331 | D197: 5.997443366 | E197: 5.354714244 | F197: 4.210399628 | G197: 5.268584475 | H197: 5.322262323 | I197: 4.794337163
B198: 9.8 | C198: 6.708268331 | D198: 6.001867035 | E198: 5.363136982 | F198: 4.224707127 | G198: 5.277399074 | H198: 5.33089029 | I198: 4.806383302
B199: 9.85 | C199: 6.708268331 | D199: 6.006262747 | E199: 5.371506504 | F199: 4.238940716 | G199: 5.286157894 | H199: 5.339463703 | I199: 4.818351577
B200: 9.9 | C200: 6.708268331 | D200: 6.010630685 | E200: 5.379823147 | F200: 4.253100872 | G200: 5.294861297 | H200: 5.347982916 | I200: 4.830242517
... 2 more rows

Sheet Concentration
A1: TIME (Hours) | B1: Concentration in Whole Body (mol/m3) | C1: Lipid Normalized Whole Body Conc. | D1: Concentration in Membrane Lipids | E1: Volume Fraction Percent in Membrane Lipids | F1: Chemical Activity in Membrane | G1: Probabilities of Death > | H1: P(Concentration in Whole Body) | I1: P(Lipid Normalized Whole Body Conc.) | J1: P(Concentration in Membrane Lipids) | K1: P(Volume Fraction in Membrane Lipids) | L1: P(Chemical Activity in Membrane)
A2: 0.05 | B2: 0.1303538397 | C2: 1.946305931 | D2: 0.9124769225 | E2: 0.01346815938 | F2: 0.0004624067523 | H2: 7.959805037e-08 | I2: 7.778261368e-08 | J2: 7.024825166e-09 | K2: 8.270995e-09 | L2: 7.113198919e-09
A3: 0.1 | B3: 0.2854252107 | C3: 4.261667946 | D3: 2.051368975 | E3: 0.03027820607 | F3: 0.001039551622 | H3: 4.006313614e-06 | I3: 3.914939328e-06 | J3: 4.034086287e-07 | K3: 4.749710847e-07 | L3: 4.084833733e-07
A4: 0.15 | B4: 0.4436978802 | C4: 6.624828372 | D4: 3.269297422 | E4: 0.04825482995 | F4: 0.001656748972 | H4: 3.636804786e-05 | I4: 3.553858116e-05 | J4: 4.147614885e-06 | K4: 4.883378768e-06 | L4: 4.19979051e-06
A5: 0.2 | B5: 0.6009298806 | C5: 8.972450625 | D5: 4.530756103 | E5: 0.06687396009 | F5: 0.0022960057 | H5: 0.0001657303077 | I5: 0.0001619504049 | J5: 2.120213756e-05 | K5: 2.49632788e-05 | L5: 2.146885345e-05
A6: 0.25 | B6: 0.7564038608 | C6: 11.29382398 | D6: 5.824107998 | E6: 0.08596383405 | F6: 0.002951424631 | H6: 0.0005236617432 | I6: 0.0005117183211 | J6: 7.441718013e-05 | K6: 8.761836973e-05 | L6: 7.535332406e-05
A7: 0.3 | B7: 0.9101027181 | C7: 13.58869307 | D7: 7.143331625 | E7: 0.1054355748 | F7: 0.003619954319 | H7: 0.001320482011 | I7: 0.001290365218 | J7: 0.0002065522293 | K7: 0.0002431934057 | L7: 0.0002091505739
A8: 0.35 | B8: 1.062132632 | C8: 15.85864325 | D8: 8.484147859 | E8: 0.1252260224 | F8: 0.004299426276 | H8: 0.002858714937 | I8: 0.002793515503 | J8: 0.0004881646827 | K8: 0.0005747621435 | L8: 0.0004943056265
A9: 0.4 | B9: 1.212607805 | C9: 18.1053797 | D9: 9.843121135 | E9: 0.145284468 | F9: 0.004988099495 | H9: 0.005544636197 | I9: 0.005418179937 | J9: 0.001026096471 | K9: 0.001208119199 | L9: 0.001039004303
A10: 0.45 | B10: 1.361629689 | C10: 20.33041716 | D10: 11.21739626 | E10: 0.1655687689 | F10: 0.00568452708 | H10: 0.009898214625 | I10: 0.009672471306 | J10: 0.00197234235 | K10: 0.002322220892 | L10: 0.001997153508
A11: 0.5 | B11: 1.509285093 | C11: 22.53505178 | D11: 12.60457375 | E11: 0.1860435086 | F11: 0.006387493064 | H11: 0.01656165553 | I11: 0.01618395496 | J11: 0.003533128394 | K11: 0.004159872756 | L11: 0.003577572992
A12: 0.55 | B12: 1.655647814 | C12: 24.72038543 | D12: 14.00262939 | E12: 0.2066788097 | F12: 0.007095971654 | H12: 0.02630667562 | I12: 0.02570676137 | J12: 0.005978073672 | K12: 0.007038513493 | L12: 0.006053273566
A13: 0.6 | B13: 1.800780619 | C13: 26.88735527 | D13: 15.40984923 | E13: 0.2274493747 | F13: 0.007809094303 | H13: 0.04004058166 | I13: 0.03912753192 | J13: 0.009649332404 | K13: 0.01136097326 | L13: 0.009770711884
A14: 0.65 | B14: 1.944737085 | C14: 29.03676126 | D14: 16.82478255 | E14: 0.2483337905 | F14: 0.00852612583 | H14: 0.05881120013 | I14: 0.05747024499 | J14: 0.01497066399 | K14: 0.01762614276 | L14: 0.0151589755
A15: 0.7 | B15: 2.087563045 | C15: 31.16928772 | D15: 18.24619142 | E15: 0.2693137854 | F15: 0.009246438906 | H15: 0.08381065689 | I15: 0.08189992232 | J15: 0.02245632263 | K15: 0.02643942316 | L15: 0.02273878269
A16: 0.75 | B16: 2.2292979 | C16: 33.28552296 | D16: 19.67301987 | E16: 0.2903737733 | F16: 0.009969498406 | H16: 0.1163780297 | I16: 0.1137252394 | J16: 0.03271977934 | K16: 0.03852296875 | L16: 0.03313131258
A17: 0.8 | B17: 2.369975698 | C17: 35.38597534 | D17: 21.10436625 | E17: 0.3115004459 | F17: 0.01069484742 | H17: 0.1580008571 | I17: 0.1544000247 | J17: 0.04648222348 | K17: 0.05472565572 | L17: 0.0470668152
A18: 0.85 | B18: 2.509625948 | C18: 37.47108545 | D18: 22.5394524 | E18: 0.3326823175 | F18: 0.01142209159 | H18: 0.2103154536 | I18: 0.2055236016 | J18: 0.0645807082 | K18: 0.0760326117 | L18: 0.06539284438
A19: 0.9 | B19: 2.648274395 | C19: 39.54123771 | D19: 23.97760737 | E19: 0.3539094848 | F19: 0.01215089092 | H19: 0.275106047 | I19: 0.268839988 | J19: 0.08797603557 | K19: 0.103574412 | L19: 0.08908224851
A20: 0.95 | B20: 2.785943639 | C20: 41.59676953 | D20: 25.41825119 | E20: 0.3751733875 | F20: 0.0128809515 | H20: 0.3543026774 | I20: 0.3462358994 | J20: 0.1177602638 | K20: 0.1386357954 | L20: 0.1192407608
A21: 1 | B21: 2.922653605 | C21: 43.63797843 | D21: 26.86087698 | E21: 0.3964665442 | F21: 0.01361201646 | H21: 0.4499777875 | I21: 0.4397374854 | J21: 0.1551636762 | K21: 0.1826636992 | L21: 0.1571140438
A22: 1.05 | B22: 3.058421988 | C22: 45.66512859 | D22: 28.30504125 | E22: 0.4177824088 | F22: 0.01434386106 | H22: 0.5643415057 | I22: 0.5515058055 | J22: 0.2015613138 | K22: 0.2372747231 | L22: 0.2040942907
A23: 1.1 | B23: 3.193264591 | C23: 47.67845601 | D23: 29.75035246 | E23: 0.4391152023 | F23: 0.01507628688 | H23: 0.6997355214 | I23: 0.6838309469 | J23: 0.2584788212 | K23: 0.3042617101 | L23: 0.261726141
A24: 1.15 | B24: 3.32719569 | C24: 49.6781738 | D24: 31.19646946 | E24: 0.4604598893 | F24: 0.01580912105 | H24: 0.8586256081 | I24: 0.8391248403 | J24: 0.3275979431 | K24: 0.3855998256 | L24: 0.3317121565
A25: 1.2 | B25: 3.460228167 | C25: 51.66447432 | D25: 32.64308358 | E25: 0.4818119137 | F25: 0.01654220714 | H25: 1.04359247 | I25: 1.019912459 | J25: 0.410760499 | K25: 0.4834507351 | L25: 0.4159169495
A26: 1.25 | B26: 3.592373776 | C26: 53.63753305 | D26: 34.08991865 | E26: 0.5031671992 | F26: 0.01727540519 | H26: 1.257321194 | I26: 1.228821677 | J26: 0.5099720174 | K26: 0.6001662498 | L26: 0.5163707137
A27: 1.3 | B27: 3.723643362 | C27: 55.59751194 | D27: 35.53673097 | E27: 0.5245221491 | F27: 0.01800859172 | H27: 1.502589155 | I27: 1.468571644 | J27: 0.627404571 | K27: 0.738290875 | L27: 0.6352719665
A28: 1.35 | B28: 3.85404692 | C28: 57.5445602 | D28: 36.98329635 | E28: 0.5458734541 | F28: 0.01874165311 | H28: 1.782252059 | I28: 1.741959359 | J28: 0.7653974243 | K28: 0.9005616024 | L28: 0.7749884129
A29: 1.4 | B29: 3.983593744 | C29: 59.47881664 | D29: 38.4294101 | E29: 0.5672180931 | F29: 0.01947448563 | H29: 2.099228482 | I29: 2.051844807 | J29: 0.9264570232 | K29: 1.089906718 | L29: 0.9380567074
A30: 1.45 | B30: 4.112292565 | C30: 61.40041157 | D30: 39.87488702 | E30: 0.5885533325 | F30: 0.02020699543 | H30: 2.456482766 | I30: 2.401134507 | J30: 1.113255651 | K30: 1.309442802 | L30: 1.127180815
A31: 1.5 | B31: 4.240151619 | C31: 63.30946799 | D31: 41.31955815 | E31: 0.6098766784 | F31: 0.02093909689 | H31: 2.857006161 | I31: 2.792763381 | J31: 1.328628113 | K31: 1.562469139 | L31: 1.345228791
A32: 1.55 | B32: 4.367178649 | C32: 65.20610152 | D32: 42.76326104 | E32: 0.631185733 | F32: 0.02167070768 | H32: 3.303796029 | I32: 3.229674741 | J32: 1.575565211 | K32: 1.852458051 | L32: 1.595226288
A33: 1.6 | B33: 4.493381076 | C33: 67.09042294 | D33: 44.20584947 | E33: 0.6524783382 | F33: 0.02240175371 | H33: 3.799834016 | I33: 3.714799293 | J33: 1.857207973 | K33: 2.183045797 | L33: 1.880349874
A34: 1.65 | B34: 4.618765999 | C34: 68.96253825 | D34: 45.64718698 | E34: 0.6737524798 | F34: 0.02313216582 | H34: 4.348062182 | I34: 4.251032167 | J34: 2.176837367 | K34: 2.5580178 | L34: 2.203917265
A35: 1.7 | B35: 4.74334022 | C35: 70.82254901 | D35: 47.0871436 | E35: 0.6950062395 | F35: 0.02386187816 | H35: 4.951357686 | I35: 4.841208532 | J35: 2.537861568 | K35: 2.98129062 | L35: 2.569373369
A36: 1.75 | B36: 4.867110318 | C36: 72.67055346 | D36: 48.52559911 | E36: 0.7162378429 | F36: 0.02459082979 | H36: 5.612506404 | I36: 5.488078195 | J36: 2.943802003 | K36: 3.456892104 | L36: 2.980276585
A37: 1.8 | B37: 4.990082631 | C37: 74.50664622 | D37: 49.96243655 | E37: 0.7374455635 | F37: 0.02531896145 | H37: 6.334174875 | I37: 6.194278547 | J37: 3.398274017 | K37: 3.988934803 | L37: 3.440279245
A38: 1.85 | B38: 5.112263347 | C38: 76.3309197 | D38: 51.3975487 | E38: 0.7586278188 | F38: 0.02604621879 | H38: 7.118881918 | I38: 6.96230719 | J38: 3.90496805 | K38: 4.581589585 | L38: 3.953107119
A39: 1.9 | B39: 5.23365847 | C39: 78.14346354 | D39: 52.83083157 | E39: 0.779783074 | F39: 0.02677254914 | H39: 7.96896876 | I39: 7.794493089 | J39: 4.467623806 | K39: 5.239050632 | L39: 4.52253437
A40: 1.95 | B40: 5.354273847 | C40: 79.94436502 | D40: 54.26218445 | E40: 0.8009098425 | F40: 0.02749790144 | H40: 8.886568946 | I40: 8.692967481 | J40: 5.090002606 | K40: 5.965497946 | L40: 5.152354717
A41: 2 | B41: 5.474115183 | C41: 81.73370934 | D41: 55.69150987 | E41: 0.8220066856 | F41: 0.02822222631 | H41: 9.873578038 | I41: 9.659634542 | J41: 5.775856328 | K41: 6.765055531 | L41: 5.846348286
A42: 2.05 | B42: 5.593188158 | C42: 83.51158131 | D42: 57.11872334 | E42: 0.8430723565 | F42: 0.02894548092 | H42: 10.93162433 | I42: 10.696143 | J42: 6.528898277 | K42: 7.641751539 | L42: 6.608254433
A43: 2.1 | B43: 5.711498251 | C43: 85.27806272 | D43: 58.54373389 | E43: 0.8641055121 | F43: 0.02966761918 | H43: 12.06203758 | I43: 11.80385571 | J43: 7.352755988 | K43: 8.599457178 | L43: 7.441720963
A44: 2.15 | B44: 5.829050875 | C44: 87.03323441 | D44: 59.96645703 | E44: 0.8851049058 | F44: 0.03038859828 | H44: 13.2658212 | I44: 12.98382263 | J44: 8.250936113 | K44: 9.64183964 | L44: 8.350271225
A45: 2.2 | B45: 5.945851394 | C45: 88.77717648 | D45: 61.3868148 | E45: 0.9060693865 | F45: 0.03110837871 | H45: 14.54362493 | I45: 14.23675406 | J45: 9.226780884 | K45: 10.77230527 | L45: 9.337255478
A46: 2.25 | B46: 6.061905002 | C46: 90.50996644 | D46: 62.80472272 | E46: 0.9269977073 | F46: 0.03182691764 | H46: 15.89571761 | I46: 15.56299392 | J46: 10.28341169 | K46: 11.99392806 | L46: 10.40579796
A47: 2.3 | B47: 6.177216922 | C47: 92.2316823 | D47: 64.2201093 | E47: 0.9478888132 | F47: 0.03254417886 | H47: 17.32196573 | I47: 16.96249862 | J47: 11.42369255 | K47: 13.30940162 | L47: 11.55875492
A48: 2.35 | B48: 6.291792287 | C48: 93.94240069 | D48: 65.63290305 | E48: 0.9687416491 | F48: 0.03326012614 | H48: 18.82181114 | I48: 18.43481492 | J48: 12.65016931 | K48: 14.72096373 | L48: 12.79865837
A49: 2.4 | B49: 6.405636078 | C49: 95.64219602 | D49: 67.04302601 | E49: 0.989555064 | F49: 0.03397471997 | H49: 20.39425226 | I49: 19.97906103 | J49: 13.96500866 | K49: 16.23032172 | L49: 14.12764835
A50: 2.45 | B50: 6.518753329 | C50: 97.3311434 | D50: 68.45041319 | E50: 1.010328099 | F50: 0.03468792741 | H50: 22.03783237 | I50: 21.59391463 | J50: 15.36996035 | K50: 17.83860582 | L50: 15.54743767
A51: 2.5 | B51: 6.631148997 | C51: 99.00931686 | D51: 69.85499961 | E51: 1.031059794 | F51: 0.03539971554 | H51: 23.7506277 | I51: 23.27760041 | J51: 16.86629128 | K51: 19.54629154 | L51: 17.05924606
A52: 2.55 | B52: 6.7428279 | C52: 100.6767884 | D52: 71.25671378 | E52: 1.051749095 | F52: 0.03611004814 | H52: 25.53024043 | I52: 25.02788234 | J52: 18.45472258 | K52: 21.35312782 | L52: 18.66373062
A53: 2.6 | B53: 6.853794923 | C53: 102.3336308 | D53: 72.65549722 | E53: 1.072395139 | F53: 0.03681889555 | H53: 27.37380058 | I53: 26.8420644 | J53: 20.13539793 | K53: 23.25810277 | L53: 20.36096573
A54: 2.65 | B54: 6.964054882 | C54: 103.9799161 | D54: 74.05129144 | E54: 1.092997062 | F54: 0.03752622815 | H54: 29.27796795 | I54: 28.71699131 | J54: 21.90782023 | K54: 25.25937607 | L54: 22.15036392
A55: 2.7 | B55: 7.073612467 | C55: 105.6157143 | D55: 75.44403147 | E55: 1.113553905 | F55: 0.03823201301 | H55: 31.23894007 | I55: 30.64905494 | J55: 23.77079585 | K55: 27.35422309 | L55: 24.03063202
A56: 2.75 | B56: 7.18247244 | C56: 107.2410965 | D56: 76.83366532 | E56: 1.1340649 | F56: 0.03893622377 | H56: 33.25247026 | I56: 32.63421043 | J56: 25.72241893 | K56: 29.53902752 | L56: 25.99975014
A57: 2.8 | B57: 7.290639439 | C57: 108.856132 | D57: 78.22013449 | E57: 1.154529185 | F57: 0.03963883081 | H57: 35.31388432 | I57: 34.66799103 | J57: 27.76001138 | K57: 31.80922758 | L57: 28.05491257
A58: 2.85 | B58: 7.398118047 | C58: 110.4608891 | D58: 79.60338051 | E58: 1.174945896 | F58: 0.04033980449 | H58: 37.41810736 | I58: 36.74553247 | J58: 29.88010389 | K58: 34.15931229 | L58: 30.19251251
A59: 2.9 | B59: 7.504912856 | C59: 112.0554365 | D59: 80.9833514 | E59: 1.195314267 | F59: 0.04103911845 | H59: 39.55969613 | I59: 38.86160304 | J59: 32.07842863 | K59: 36.58283462 | L59: 32.40813446
A60: 2.95 | B60: 7.61102841 | C60: 113.6398419 | D60: 82.35999515 | E60: 1.215633528 | F60: 0.04173674636 | H60: 41.73287429 | I60: 41.01063608 | J60: 34.34990298 | K60: 39.0724184 | L60: 34.69652939
A61: 3 | B61: 7.716469262 | C61: 115.2141734 | D61: 83.7332663 | E61: 1.235903011 | F61: 0.04243266517 | H61: 43.93157499 | I61: 43.18677002 | J61: 36.68864499 | K61: 41.61980437 | L61: 37.05165482
A62: 3.05 | B62: 7.821239788 | C62: 116.7784963 | D62: 85.10310634 | E62: 1.25612185 | F62: 0.04312684523 | H62: 46.14948272 | I62: 45.38388737 | J62: 39.08795725 | K62: 44.21586559 | L62: 39.46663666
A63: 3.1 | B63: 7.925344512 | C63: 118.3328781 | D63: 86.4694763 | E63: 1.27628947 | F63: 0.04381926679 | H63: 48.38009 | I63: 47.59566862 | J63: 41.5404134 | K63: 46.85073781 | L63: 41.93387222
A64: 3.15 | B64: 8.028787777 | C64: 119.8773838 | D64: 87.83232418 | E64: 1.296405105 | F64: 0.0445099035 | H64: 50.61674397 | I64: 49.8156361 | J64: 44.03784638 | K64: 49.51384616 | L64: 44.44501495
A65: 3.2 | B65: 8.131574012 | C65: 121.4120793 | D65: 89.191611 | E65: 1.316468178 | F65: 0.04519873561 | H65: 52.85270804 | I65: 52.03721296 | J65: 46.57145369 | K65: 52.1940602 | L65: 46.99109268
A66: 3.25 | B66: 8.23370747 | C66: 122.9370283 | D66: 90.54728477 | E66: 1.336477923 | F66: 0.04588573677 | H66: 55.08121456 | I66: 54.25377329 | J66: 49.1318228 | K66: 54.87976492 | L66: 49.56251907
A67: 3.3 | B67: 8.335192489 | C67: 124.4522955 | D67: 91.8993065 | E67: 1.356433764 | F67: 0.04657088722 | H67: 57.29552987 | I67: 56.45870482 | J67: 51.70906647 | K67: 57.55904866 | L67: 52.14925003
A68: 3.35 | B68: 8.436033364 | C68: 125.957945 | D68: 93.24763719 | E68: 1.376335125 | F68: 0.04725416721 | H68: 59.48901128 | I68: 58.64546392 | J68: 54.2928988 | K68: 60.21982701 | L68: 54.74084854
A69: 3.4 | B69: 8.536234345 | C69: 127.4540402 | D69: 94.59223787 | E69: 1.396181431 | F69: 0.04793555697 | H69: 61.65516641 | I69: 60.80763303 | J69: 56.87274672 | K69: 62.85000219 | L69: 57.32661438
A70: 3.45 | B70: 8.635799576 | C70: 128.9406432 | D70: 95.93306304 | E70: 1.41597201 | F70: 0.04861503346 | H70: 63.78770968 | I70: 62.93897581 | J70: 59.43785949 | K70: 65.43761703 | L70: 59.89567947
A71: 3.5 | B71: 8.734733288 | C71: 130.4178169 | D71: 97.27008021 | E71: 1.435706384 | F71: 0.0492925802 | H71: 65.88062208 | I71: 65.03349584 | J71: 61.97747618 | K71: 67.9710626 | L71: 62.43719482
A72: 3.55 | B72: 8.833039609 | C72: 131.8856231 | D72: 98.60325039 | E72: 1.455383976 | F72: 0.04996817744 | H72: 67.92819946 | I72: 67.08548429 | J72: 64.48092428 | K72: 70.43920941 | L72: 64.94042969
A73: 3.6 | B73: 8.930722622 | C73: 133.3441228 | D73: 99.93253459 | E73: 1.475004211 | F73: 0.05064180543 | H73: 69.92510247 | I73: 69.0895696 | J73: 66.93777134 | K73: 72.83158467 | L73: 67.39490509
A74: 3.65 | B74: 9.027786438 | C74: 134.7933772 | D74: 101.2579003 | E74: 1.494566609 | F74: 0.05131344769 | H74: 71.86640157 | I74: 71.04076281 | J74: 69.33797611 | K74: 75.13853894 | L74: 69.79057312
A75: 3.7 | B75: 9.124235126 | C75: 136.2334472 | D75: 102.5793151 | E75: 1.514070691 | F75: 0.05198308776 | H75: 73.7476141 | I75: 72.93449535 | J75: 71.67201219 | K75: 77.35137546 | L75: 72.11794281
A76: 3.75 | B76: 9.220072719 | C76: 137.664393 | D76: 103.8967464 | E76: 1.533515977 | F76: 0.05265070918 | H76: 75.56473677 | I76: 74.76665257 | J76: 73.93099797 | K76: 79.46247473 | L76: 74.36817932
A77: 3.8 | B77: 9.315303143 | C77: 139.0862731 | D77: 105.2101553 | E77: 1.552901892 | F77: 0.05331629218 | H77: 77.31427047 | I77: 76.53360022 | J77: 76.10680671 | K77: 81.46538864 | L77: 76.53324127
A78: 3.85 | B78: 9.409930485 | C78: 140.4991487 | D78: 106.5195222 | E78: 1.572228148 | F78: 0.0539798269 | H78: 78.99324446 | I78: 78.23221058 | J78: 78.1922174 | K78: 83.35495952 | L78: 78.6060257
A79: 3.9 | B79: 9.503958596 | C79: 141.9030772 | D79: 107.8248082 | E79: 1.591494169 | F79: 0.05464129356 | H79: 80.59922164 | I79: 79.85986999 | J79: 80.1809431 | K79: 85.12731427 | L79: 80.58039093
A80: 3.95 | B80: 9.597391486 | C80: 143.2981185 | D80: 109.1259938 | E80: 1.610699669 | F80: 0.05530068229 | H80: 82.13031087 | I80: 81.41449388 | J80: 82.06776796 | K80: 86.77994629 | L80: 82.45128632
A81: 4 | B81: 9.690232934 | C81: 144.684329 | D81: 110.42304 | E81: 1.62984407 | F81: 0.05595797333 | H81: 83.58515894 | I81: 82.8945215 | J81: 83.84854325 | K81: 88.31165985 | L81: 84.21475983
A82: 4.05 | B82: 9.782486877 | C82: 146.0617675 | D82: 111.7159273 | E82: 1.648927086 | F82: 0.05661315681 | H82: 84.96294874 | I82: 84.2989173 | J82: 85.52027786 | K82: 89.72258857 | L82: 85.86802673
A83: 4.1 | B83: 9.874157022 | C83: 147.4304893 | D83: 113.0046166 | E83: 1.667948141 | F83: 0.05726621296 | H83: 86.26337866 | I83: 85.62715335 | J83: 87.08109682 | K83: 91.01409139 | L83: 87.40943909
A84: 4.15 | B84: 9.965247299 | C84: 148.7905532 | D84: 114.2890951 | E84: 1.686907044 | F84: 0.0579171352 | H84: 87.48664874 | I84: 86.87919892 | J84: 88.53028827 | K84: 92.1887178 | L84: 88.83851624
A85: 4.2 | B85: 10.05576147 | C85: 150.1420153 | D85: 115.5693367 | E85: 1.70580341 | F85: 0.05856591035 | H85: 88.63342901 | I85: 88.05549196 | J85: 89.86822131 | K85: 93.25006102 | L85: 90.1558609
A86: 4.25 | B86: 10.14570328 | C86: 151.4849313 | D86: 116.8453154 | E86: 1.724636855 | F86: 0.05921252525 | H86: 89.70483086 | I86: 89.1569136 | J86: 91.09631032 | K86: 94.20264952 | L86: 91.36313629
A87: 4.3 | B87: 10.23507653 | C87: 152.8193585 | D87: 118.1170182 | E87: 1.743407189 | F87: 0.0598569733 | H87: 90.70237364 | I87: 90.18475789 | J87: 92.21695404 | K87: 95.05181786 | L87: 92.46295929
A88: 4.35 | B88: 10.32388478 | C88: 154.1453495 | D88: 119.3844062 | E88: 1.762113836 | F88: 0.06049923475 | H88: 91.62794224 | I88: 91.14069206 | J88: 93.2334122 | K88: 95.80353321 | L88: 93.45881653
A89: 4.4 | B89: 10.41213178 | C89: 155.4629605 | D89: 120.6474663 | E89: 1.780756603 | F89: 0.06113930302 | H89: 92.48375222 | I89: 92.02672443 | J89: 94.14974916 | K89: 96.46427831 | L89: 94.35497284
A90: 4.45 | B90: 10.49982124 | C90: 156.772247 | D90: 121.9061855 | E90: 1.799335299 | F90: 0.06177717151 | H90: 93.27230431 | I90: 92.84516108 | J90: 94.97069532 | K90: 97.0408795 | L90: 95.15634155
A91: 4.5 | B91: 10.58695662 | C91: 158.0732605 | D91: 123.1605249 | E91: 1.817849348 | F91: 0.06241282047 | H91: 93.99633902 | I91: 93.59856233 | J91: 95.70151329 | K91: 97.54034981 | L91: 95.8683548
A92: 4.55 | B92: 10.67354169 | C92: 159.3660574 | D92: 124.4104845 | E92: 1.836298751 | F92: 0.0630462499 | H92: 94.65879863 | I92: 94.28970668 | J92: 96.34791465 | K92: 97.96977747 | L92: 96.49685669
A93: 4.6 | B93: 10.75957996 | C93: 160.65069 | D93: 125.6560382 | E93: 1.854683124 | F93: 0.06367744662 | H93: 95.26277863 | I93: 94.92154313 | J93: 96.91589642 | K93: 98.33617056 | L93: 97.04795837
A94: 4.65 | B94: 10.84507502 | C94: 161.927212 | D94: 126.8971731 | E94: 1.873002274 | F94: 0.06430640405 | H94: 95.81148899 | I94: 95.49715358 | J94: 97.41164322 | K94: 98.64635926 | L94: 97.52793121
A95: 4.7 | B95: 10.93003031 | C95: 163.1956746 | D95: 128.1338631 | E95: 1.891255819 | F95: 0.06493310902 | H95: 96.30821228 | I95: 96.01971132 | J95: 97.84140135 | K95: 98.90689161 | L95: 97.94308472
A96: 4.75 | B96: 11.01444936 | C96: 164.4561308 | D96: 129.3660953 | E96: 1.909443567 | F96: 0.06555755494 | H96: 96.75626751 | I96: 96.49244509 | J96: 98.21138403 | K96: 99.12396124 | L96: 98.29966736
A97: 4.8 | B97: 11.09833567 | C97: 165.7086326 | D97: 130.5938567 | E97: 1.927565325 | F97: 0.06617973523 | H97: 97.1589741 | I97: 96.91860291 | J97: 98.52767109 | K97: 99.30334293 | L97: 98.60375977
A98: 4.85 | B98: 11.18169272 | C98: 166.9532321 | D98: 131.8171342 | E98: 1.945620901 | F98: 0.06679964329 | H98: 97.51961992 | I98: 97.30141952 | J98: 98.7961276 | K98: 99.45035021 | L98: 98.86123657
A99: 4.9 | B99: 11.26452394 | C99: 168.1899805 | D99: 133.035915 | E99: 1.963610105 | F99: 0.06741727255 | H99: 97.84143261 | I99: 97.644087 | J99: 99.02233605 | K99: 99.56980994 | L99: 99.07762909
A100: 4.95 | B100: 11.34683263 | C100: 169.4189268 | D100: 134.2501729 | E100: 1.981532552 | F100: 0.06803260982 | H100: 98.12755396 | I100: 97.9497281 | J100: 99.21154071 | K100: 99.66605144 | L100: 99.25814056
A101: 5 | B101: 11.42862228 | C101: 170.6401236 | D101: 135.459908 | E101: 1.999388242 | F101: 0.06864565512 | H101: 98.38101973 | I101: 98.22137494 | J101: 99.3686141 | K101: 99.74291344 | L101: 99.40758514
A102: 5.05 | B102: 11.50989626 | C102: 171.8536209 | D102: 136.6651073 | E102: 2.017176984 | F102: 0.06925640185 | H102: 98.60474017 | I102: 98.46194806 | J102: 99.49802375 | K102: 99.80375568 | L102: 99.53036499
A103: 5.1 | B103: 11.59065788 | C103: 173.0594682 | D103: 137.8657578 | E103: 2.034898586 | F103: 0.06986484343 | H103: 98.80148606 | I103: 98.67424102 | J103: 99.60382109 | K103: 99.85148491 | L103: 99.63044739
A104: 5.15 | B104: 11.67091045 | C104: 174.2577148 | D104: 139.0618465 | E104: 2.052552855 | F104: 0.07047097327 | H104: 98.97387762 | I104: 98.8609078 | J104: 99.68963902 | K104: 99.88858639 | L104: 99.71138763
A105: 5.2 | B105: 11.75065722 | C105: 175.4484095 | D105: 140.2533604 | E105: 2.0701396 | F105: 0.07107478479 | H105: 99.12437666 | I105: 99.02445327 | J105: 99.75869927 | K105: 99.9171602 | L105: 99.77631378
A106: 5.25 | B106: 11.82990157 | C106: 176.6316025 | D106: 141.4402995 | E106: 2.087658821 | F106: 0.07167627798 | H106: 99.25528184 | I106: 99.16722699 | J106: 99.81382841 | K106: 99.93896047 | L106: 99.82798004
A107: 5.3 | B107: 11.90864671 | C107: 177.8073417 | D107: 142.6226509 | E107: 2.105110327 | F107: 0.07227544626 | H107: 99.36872603 | I107: 99.2914189 | J107: 99.85747841 | K107: 99.9554349 | L107: 99.86875916
A108: 5.35 | B108: 11.98689581 | C108: 178.9756747 | D108: 143.8004014 | E108: 2.122493924 | F108: 0.07287228305 | H108: 99.46667686 | I108: 99.39905841 | J108: 99.89175441 | K108: 99.96776475 | L108: 99.90066528
A109: 5.4 | B109: 12.06465204 | C109: 180.1366486 | D109: 144.9735381 | E109: 2.139809423 | F109: 0.07346678175 | H109: 99.55093902 | I109: 99.49201541 | J109: 99.91844463 | K109: 99.97690269 | L109: 99.92542267
A110: 5.45 | B110: 12.14191865 | C110: 181.290312 | D110: 146.1420611 | E110: 2.157056821 | F110: 0.07405894237 | H110: 99.62315863 | I110: 99.57200322 | J110: 99.93905228 | K110: 99.9836082 | L110: 99.94447327
A111: 5.5 | B111: 12.21869886 | C111: 182.4367132 | D111: 147.3059702 | E111: 2.17423612 | F111: 0.07464876491 | H111: 99.68482875 | I111: 99.64058296 | J111: 99.95482739 | K111: 99.98847957 | L111: 99.95899963
A112: 5.55 | B112: 12.29499577 | C112: 183.575898 | D112: 148.4652526 | E112: 2.191347128 | F112: 0.07523624278 | H112: 99.73729621 | I112: 99.69916938 | J112: 99.96679847 | K112: 99.99198265 | L112: 99.96997833
A113: 5.6 | B113: 12.3708124 | C113: 184.7079119 | D113: 149.6198952 | E113: 2.208389653 | F113: 0.07582136939 | H113: 99.78176963 | I113: 99.74903794 | J113: 99.97580312 | K113: 99.99447594 | L113: 99.97821045
A114: 5.65 | B114: 12.44615191 | C114: 185.832802 | D114: 150.769898 | E114: 2.225363694 | F114: 0.07640414475 | H114: 99.81932803 | I114: 99.79133268 | J114: 99.98251637 | K114: 99.99623214 | L114: 99.98432159
A115: 5.7 | B115: 12.52101744 | C115: 186.950615 | D115: 151.915261 | E115: 2.242269253 | F115: 0.07698456885 | H115: 99.85092969 | I115: 99.82707442 | J115: 99.98747645 | K115: 99.99745618 | L115: 99.98881531
A116: 5.75 | B116: 12.59541194 | C116: 188.0613951 | D116: 153.0559713 | E116: 2.259106136 | F116: 0.07756263512 | H116: 99.87742134 | I116: 99.85716946 | J116: 99.99110794 | K116: 99.99830028 | L116: 99.99209595
A117: 5.8 | B117: 12.66933849 | C117: 189.1651884 | D117: 154.1920288 | E117: 2.275874344 | F117: 0.07813834354 | H117: 99.89954749 | I117: 99.88241856 | J117: 99.99374235 | K117: 99.99887612 | L117: 99.99446106
A118: 5.85 | B118: 12.74280015 | C118: 190.2620403 | D118: 155.3234335 | E118: 2.292573878 | F118: 0.07871169412 | H118: 99.91795954 | I118: 99.90352571 | J118: 99.99563575 | K118: 99.99926472 | L118: 99.99615479
A119: 5.9 | B119: 12.81579993 | C119: 191.3519959 | D119: 156.4501854 | E119: 2.309204736 | F119: 0.07928268686 | H119: 99.93322462 | I119: 99.92110688 | J119: 99.99698385 | K119: 99.99952408 | L119: 99.9973526
A120: 5.95 | B120: 12.8883407 | C120: 192.4350982 | D120: 157.5722715 | E120: 2.325766728 | F120: 0.07985131517 | H120: 99.94583413 | I120: 99.93569844 | J120: 99.99793462 | K120: 99.99969528 | L120: 99.99819946
A121: 6 | B121: 12.96042545 | C121: 193.5113916 | D121: 158.6896919 | E121: 2.342259852 | F121: 0.08041757905 | H121: 99.95621185 | I121: 99.94776531 | J121: 99.99859877 | K121: 99.99980701 | L121: 99.9987793
A122: 6.05 | B122: 13.03205712 | C122: 194.58092 | D122: 159.8024465 | E122: 2.35868411 | F122: 0.08098147851 | H122: 99.96472154 | I122: 99.95770856 | J122: 99.99905824 | K122: 99.99987912 | L122: 99.99918365
A123: 6.1 | B123: 13.10323863 | C123: 195.6437272 | D123: 160.9105353 | E123: 2.375039501 | F123: 0.08154301354 | H123: 99.97167396 | I123: 99.96587263 | J123: 99.99937303 | K123: 99.99992513 | L123: 99.99945831
A124: 6.15 | B124: 13.1739729 | C124: 196.6998566 | D124: 162.0139584 | E124: 2.391326026 | F124: 0.08210218414 | H124: 99.97733338 | I124: 99.97255194 | J124: 99.99958657 | K124: 99.99995415 | L124: 99.99964905
A125: 6.2 | B125: 13.24426279 | C125: 197.7493511 | D125: 163.1127157 | E125: 2.407543683 | F125: 0.08265899031 | H125: 99.9819235 | I125: 99.97799707 | J125: 99.99973001 | K125: 99.99997223 | L125: 99.99977112
A126: 6.25 | B126: 13.31411118 | C126: 198.7922535 | D126: 164.2068072 | E126: 2.423692474 | F126: 0.08321343206 | H126: 99.98563285 | I126: 99.98242029 | J126: 99.99982539 | K126: 99.99998338 | L126: 99.99985504
A127: 6.3 | B127: 13.38352088 | C127: 199.8286059 | D127: 165.2962329 | E127: 2.439772397 | F127: 0.08376550938 | H127: 99.98861959 | I127: 99.98600067 | J127: 99.99988818 | K127: 99.99999017 | L127: 99.99990845
A128: 6.35 | B128: 13.45249458 | C128: 200.8584484 | D128: 166.3809798 | E128: 2.455783263 | F128: 0.08431521569 | H128: 99.9910158 | I128: 99.98888855 | J128: 99.9999291 | K128: 99.99999425 | L128: 99.99993896
A129: 6.4 | B129: 13.5210352 | C129: 201.8818246 | D129: 167.461061 | E129: 2.471725261 | F129: 0.08486255756 | H129: 99.99293132 | I129: 99.99120968 | J129: 99.99995549 | K129: 99.99999668 | L129: 99.99996185
A130: 6.45 | B130: 13.58914563 | C130: 202.8987777 | D130: 168.5364894 | E130: 2.487598584 | F130: 0.0854075416 | H130: 99.99445709 | I130: 99.99306873 | J130: 99.99997234 | K130: 99.9999981 | L130: 99.99997711
A131: 6.5 | B131: 13.65682849 | C131: 203.9093467 | D131: 169.6072521 | E131: 2.503403041 | F131: 0.08595016121 | H131: 99.99566807 | I131: 99.99455248 | J131: 99.99998298 | K131: 99.99999893 | L131: 99.99998474
A132: 6.55 | B132: 13.7240865 | C132: 204.9135722 | D132: 170.6733489 | E132: 2.51913863 | F132: 0.0864904164 | H132: 99.99662577 | I132: 99.99573257 | J132: 99.99998964 | K132: 99.9999994 | L132: 99.99999237
A133: 6.6 | B133: 13.79092248 | C133: 205.9114965 | D133: 171.734793 | E133: 2.534805545 | F133: 0.08702831374 | H133: 99.99738049 | I133: 99.99666789 | J133: 99.99999376 | K133: 99.99999967 | L133: 99.99999237
A134: 6.65 | B134: 13.85733911 | C134: 206.9031595 | D134: 172.7915843 | E134: 2.550403785 | F134: 0.08756385324 | H134: 99.99797314 | I134: 99.99740663 | J134: 99.99999628 | K134: 99.99999982 | L134: 100
A135: 6.7 | B135: 13.92333905 | C135: 207.888601 | D135: 173.8437229 | E135: 2.565933349 | F135: 0.0880970349 | H135: 99.99843689 | I135: 99.99798811 | J135: 99.9999978 | K135: 99.9999999 | L135: 100
A136: 6.75 | B136: 13.98892494 | C136: 208.8678602 | D136: 174.8912086 | E136: 2.581394239 | F136: 0.08862785872 | H136: 99.99879849 | I136: 99.99844423 | J136: 99.99999872 | K136: 99.99999995 | L136: 100
A137: 6.8 | B137: 14.05409951 | C137: 209.8409781 | D137: 175.9340546 | E137: 2.596786646 | F137: 0.08915633128 | H137: 99.99907948 | I137: 99.9988008 | J137: 99.99999926 | K137: 99.99999997 | L137: 100
A138: 6.85 | B138: 14.11886523 | C138: 210.8079915 | D138: 176.9722478 | E138: 2.612110377 | F138: 0.089682446 | H138: 99.99929705 | I138: 99.99907859 | J138: 99.99999958 | K138: 99.99999999 | L138: 100
A139: 6.9 | B139: 14.18322493 | C139: 211.7689426 | D139: 178.0058142 | E139: 2.627365817 | F139: 0.09020621605 | H139: 99.99946494 | I139: 99.99929428 | J139: 99.99999976 | K139: 99.99999999 | L139: 100
A140: 6.95 | B140: 14.24718104 | C140: 212.7238677 | D140: 179.0347408 | E140: 2.642552774 | F140: 0.09072763485 | H140: 99.99959406 | I140: 99.99946119 | J140: 99.99999987 | K140: 100 | L140: 100
A141: 7 | B141: 14.31073621 | C141: 213.6728064 | D141: 180.0590406 | E141: 2.65767144 | F141: 0.09124670898 | H141: 99.999693 | I141: 99.99958992 | J141: 99.99999993 | K141: 100 | L141: 100
A142: 7.05 | B142: 14.37389308 | C142: 214.6157981 | D142: 181.0787267 | E142: 2.672722006 | F142: 0.09176344503 | H142: 99.99976858 | I142: 99.99968887 | J142: 99.99999996 | K142: 100 | L142: 100
A143: 7.1 | B143: 14.43665415 | C143: 215.5528802 | D143: 182.093799 | E143: 2.687704473 | F143: 0.09227784299 | H143: 99.9998261 | I143: 99.99976468 | J143: 99.99999998 | K143: 100 | L143: 100
A144: 7.15 | B144: 14.4990219 | C144: 216.4840895 | D144: 183.1042575 | E144: 2.70261884 | F144: 0.09278990287 | H144: 99.99986974 | I144: 99.99982257 | J144: 99.99999999 | K144: 100 | L144: 100
A145: 7.2 | B145: 14.56099889 | C145: 217.4094645 | D145: 184.1101151 | E145: 2.717465299 | F145: 0.09329963126 | H145: 99.99990274 | I145: 99.99986663 | J145: 99.99999999 | K145: 100 | L145: 100
A146: 7.25 | B146: 14.62258757 | C146: 218.3290417 | D146: 185.111372 | E146: 2.732243851 | F146: 0.09380702814 | H146: 99.9999276 | I146: 99.99990006 | J146: 100 | K146: 100 | L146: 100
A147: 7.3 | B147: 14.68379047 | C147: 219.2428588 | D147: 186.1080411 | E147: 2.746954687 | F147: 0.09431210012 | H147: 99.99994628 | I147: 99.99992533 | J147: 100 | K147: 100 | L147: 100
A148: 7.35 | B148: 14.74461 | C148: 220.1509518 | D148: 187.1001225 | E148: 2.761597807 | F148: 0.09481484719 | H148: 99.99996026 | I148: 99.99994439 | J148: 100 | K148: 100 | L148: 100
A149: 7.4 | B149: 14.80504865 | C149: 221.053358 | D149: 188.087629 | E149: 2.776173403 | F149: 0.09531527593 | H149: 99.9999707 | I149: 99.9999587 | J149: 100 | K149: 100 | L149: 100
A150: 7.45 | B150: 14.86510892 | C150: 221.9501145 | D150: 189.0705737 | E150: 2.790681667 | F150: 0.09581339293 | H150: 99.99997846 | I150: 99.99996942 | J150: 100 | K150: 100 | L150: 100
A151: 7.5 | B151: 14.92479315 | C151: 222.8412564 | D151: 190.0489566 | E151: 2.805122599 | F151: 0.0963091982 | H151: 99.99998421 | I151: 99.99997743 | J151: 100 | K151: 100 | L151: 100
A152: 7.55 | B152: 14.98410364 | C152: 223.7268181 | D152: 191.0227777 | E152: 2.819496199 | F152: 0.09680269173 | H152: 99.99998846 | I152: 99.99998339 | J152: 100 | K152: 100 | L152: 100
A153: 7.6 | B153: 15.04304285 | C153: 224.6068361 | D153: 191.99205 | E153: 2.833802658 | F153: 0.0972938801 | H153: 99.99999159 | I153: 99.99998781 | J153: 100 | K153: 100 | L153: 100
A154: 7.65 | B154: 15.10161317 | C154: 225.4813464 | D154: 192.9567865 | E154: 2.848042169 | F154: 0.09778276991 | H154: 99.99999389 | I154: 99.99999108 | J154: 100 | K154: 100 | L154: 100
A155: 7.7 | B155: 15.15981702 | C155: 226.3503847 | D155: 193.9170002 | E155: 2.862214923 | F155: 0.09826936774 | H155: 99.99999558 | I155: 99.99999349 | J155: 100 | K155: 100 | L155: 100
A156: 7.75 | B156: 15.21765662 | C156: 227.2139847 | D156: 194.872691 | E156: 2.87632092 | F156: 0.0987536736 | H156: 99.99999681 | I156: 99.99999526 | J156: 100 | K156: 100 | L156: 100
A157: 7.8 | B157: 15.27513436 | C157: 228.0721815 | D157: 195.8238721 | E157: 2.890360352 | F157: 0.09923569405 | H157: 99.9999977 | I157: 99.99999656 | J157: 100 | K157: 100 | L157: 100
A158: 7.85 | B158: 15.33225256 | C158: 228.9250102 | D158: 196.7705563 | E158: 2.904333412 | F158: 0.0997154357 | H158: 99.99999835 | I158: 99.99999751 | J158: 100 | K158: 100 | L158: 100
A159: 7.9 | B159: 15.38901343 | C159: 229.7725036 | D159: 197.7127438 | E159: 2.918240098 | F159: 0.1001928985 | H159: 99.99999882 | I159: 99.99999821 | J159: 100 | K159: 100 | L159: 100
A160: 7.95 | B160: 15.44541928 | C160: 230.6146962 | D160: 198.6504474 | E160: 2.932080603 | F160: 0.1006680892 | H160: 99.99999916 | I160: 99.99999871 | J160: 100 | K160: 100 | L160: 100
A161: 8 | B161: 15.5014724 | C161: 231.4516222 | D161: 199.5836801 | E161: 2.945855119 | F161: 0.1011410142 | H161: 99.9999994 | I161: 99.99999907 | J161: 100 | K161: 100 | L161: 100
A162: 8.05 | B162: 15.55717506 | C162: 232.2833156 | D162: 200.5124551 | E162: 2.959563837 | F162: 0.1016116801 | H162: 99.99999957 | I162: 99.99999934 | J162: 100 | K162: 100 | L162: 100
A163: 8.1 | B163: 15.6125294 | C163: 233.1098081 | D163: 201.4367722 | E163: 2.973206758 | F163: 0.102080087 | H163: 99.9999997 | I163: 99.99999953 | J163: 100 | K163: 100 | L163: 100
A164: 8.15 | B164: 15.66753765 | C164: 233.9311333 | D164: 202.3566445 | E164: 2.986784072 | F164: 0.1025462414 | H164: 99.99999979 | I164: 99.99999966 | J164: 100 | K164: 100 | L164: 100
A165: 8.2 | B165: 15.72220206 | C165: 234.7473245 | D165: 203.2720849 | E165: 3.000295973 | F165: 0.10301015 | H165: 99.99999985 | I165: 99.99999976 | J165: 100 | K165: 100 | L165: 100
A166: 8.25 | B166: 15.77652481 | C166: 235.5584145 | D166: 204.1831065 | E166: 3.013742652 | F166: 0.1034718192 | H166: 99.99999989 | I166: 99.99999983 | J166: 100 | K166: 100 | L166: 100
A167: 8.3 | B167: 15.83050799 | C167: 236.3644343 | D167: 205.0897093 | E167: 3.027124109 | F167: 0.1039312492 | H167: 99.99999993 | I167: 99.99999988 | J167: 100 | K167: 100 | L167: 100
A168: 8.35 | B168: 15.88415389 | C168: 237.1654183 | D168: 205.9919192 | E168: 3.040440728 | F168: 0.104388453 | H168: 99.99999995 | I168: 99.99999992 | J168: 100 | K168: 100 | L168: 100
A169: 8.4 | B169: 15.93746455 | C169: 237.9613968 | D169: 206.8897363 | E169: 3.053692508 | F169: 0.1048434308 | H169: 99.99999996 | I169: 99.99999994 | J169: 100 | K169: 100 | L169: 100
A170: 8.45 | B170: 15.99044212 | C170: 238.752402 | D170: 207.7831735 | E170: 3.066879641 | F170: 0.105296189 | H170: 99.99999998 | I170: 99.99999996 | J170: 100 | K170: 100 | L170: 100
A171: 8.5 | B171: 16.04308873 | C171: 239.5384656 | D171: 208.6722439 | E171: 3.08000232 | F171: 0.1057467342 | H171: 99.99999998 | I171: 99.99999997 | J171: 100 | K171: 100 | L171: 100
A172: 8.55 | B172: 16.0954065 | C172: 240.3196193 | D172: 209.5569604 | E172: 3.093060736 | F172: 0.1061950731 | H172: 99.99999999 | I172: 99.99999998 | J172: 100 | K172: 100 | L172: 100
A173: 8.6 | B173: 16.14739753 | C173: 241.0958944 | D173: 210.4373361 | E173: 3.106055081 | F173: 0.1066412122 | H173: 99.99999999 | I173: 99.99999999 | J173: 100 | K173: 100 | L173: 100
A174: 8.65 | B174: 16.19906389 | C174: 241.8673221 | D174: 211.3133839 | E174: 3.118985546 | F174: 0.1070851582 | H174: 99.99999999 | I174: 99.99999999 | J174: 100 | K174: 100 | L174: 100
A175: 8.7 | B175: 16.25040755 | C175: 242.6339313 | D175: 212.1851038 | E175: 3.131852133 | F175: 0.1075269109 | H175: 100 | I175: 99.99999999 | J175: 100 | K175: 100 | L175: 100
A176: 8.75 | B176: 16.30143068 | C176: 243.3957548 | D176: 213.0525219 | E176: 3.144655223 | F176: 0.1079664836 | H176: 100 | I176: 100 | J176: 100 | K176: 100 | L176: 100
A177: 8.8 | B177: 16.35213519 | C177: 244.152821 | D177: 213.9156381 | E177: 3.157394818 | F177: 0.1084038763 | H177: 100 | I177: 100 | J177: 100 | K177: 100 | L177: 100
A178: 8.85 | B178: 16.40252324 | C178: 244.9051622 | D178: 214.7744784 | E178: 3.170071302 | F178: 0.1088391022 | H178: 100 | I178: 100 | J178: 100 | K178: 100 | L178: 100
A179: 8.9 | B179: 16.45259672 | C179: 245.6528065 | D179: 215.6290429 | E179: 3.182684673 | F179: 0.1092721612 | H179: 100 | I179: 100 | J179: 100 | K179: 100 | L179: 100
A180: 8.95 | B180: 16.50235762 | C180: 246.3957838 | D180: 216.4793444 | E180: 3.195235124 | F180: 0.10970306 | H180: 100 | I180: 100 | J180: 100 | K180: 100 | L180: 100
A181: 9 | B181: 16.55180806 | C181: 247.1341255 | D181: 217.3254091 | E181: 3.207723039 | F181: 0.1101318117 | H181: 100 | I181: 100 | J181: 100 | K181: 100 | L181: 100
A182: 9.05 | B182: 16.60095 | C182: 247.8678612 | D182: 218.1672499 | E182: 3.220148609 | F182: 0.1105584229 | H182: 100 | I182: 100 | J182: 100 | K182: 100 | L182: 100
A183: 9.1 | B183: 16.64978516 | C183: 248.5970161 | D183: 219.0048538 | E183: 3.232511642 | F183: 0.110982887 | H183: 100 | I183: 100 | J183: 100 | K183: 100 | L183: 100
A184: 9.15 | B184: 16.69831559 | C184: 249.3216213 | D184: 219.8382468 | E184: 3.244812523 | F184: 0.1114052172 | H184: 100 | I184: 100 | J184: 100 | K184: 100 | L184: 100
A185: 9.2 | B185: 16.74654335 | C185: 250.0417074 | D185: 220.6674549 | E185: 3.257051635 | F185: 0.1118254266 | H185: 100 | I185: 100 | J185: 100 | K185: 100 | L185: 100
A186: 9.25 | B186: 16.79447025 | C186: 250.7573012 | D186: 221.4924781 | E186: 3.269228977 | F186: 0.1122435154 | H186: 100 | I186: 100 | J186: 100 | K186: 100 | L186: 100
A187: 9.3 | B187: 16.84209829 | C187: 251.4684329 | D187: 222.3133424 | E187: 3.281344934 | F187: 0.1126594965 | H187: 100 | I187: 100 | J187: 100 | K187: 100 | L187: 100
A188: 9.35 | B188: 16.88942925 | C188: 252.1751288 | D188: 223.1300478 | E188: 3.293399506 | F188: 0.1130733701 | H188: 100 | I188: 100 | J188: 100 | K188: 100 | L188: 100
A189: 9.4 | B189: 16.93646513 | C189: 252.877419 | D189: 223.9426203 | E189: 3.305393076 | F189: 0.1134851493 | H189: 100 | I189: 100 | J189: 100 | K189: 100 | L189: 100
A190: 9.45 | B190: 16.98320767 | C190: 253.5753292 | D190: 224.7510599 | E190: 3.317325644 | F190: 0.113894834 | H190: 100 | I190: 100 | J190: 100 | K190: 100 | L190: 100
A191: 9.5 | B191: 17.02965858 | C191: 254.2688851 | D191: 225.5553665 | E191: 3.32919721 | F191: 0.1143024244 | H191: 100 | I191: 100 | J191: 100 | K191: 100 | L191: 100
A192: 9.55 | B192: 17.07582009 | C192: 254.95812 | D192: 226.3555922 | E192: 3.341008541 | F192: 0.1147079468 | H192: 100 | I192: 100 | J192: 100 | K192: 100 | L192: 100
A193: 9.6 | B193: 17.12169363 | C193: 255.6430553 | D193: 227.151711 | E193: 3.352759255 | F193: 0.1151113879 | H193: 100 | I193: 100 | J193: 100 | K193: 100 | L193: 100
A194: 9.65 | B194: 17.1672814 | C194: 256.3237238 | D194: 227.9437749 | E194: 3.364450118 | F194: 0.1155127741 | H194: 100 | I194: 100 | J194: 100 | K194: 100 | L194: 100
A195: 9.7 | B195: 17.21258508 | C195: 257.0001505 | D195: 228.7317838 | E195: 3.37608113 | F195: 0.1159121055 | H195: 100 | I195: 100 | J195: 100 | K195: 100 | L195: 100
A196: 9.75 | B196: 17.25760632 | C196: 257.6723602 | D196: 229.5157378 | E196: 3.387652291 | F196: 0.116309382 | H196: 100 | I196: 100 | J196: 100 | K196: 100 | L196: 100
A197: 9.8 | B197: 17.30234703 | C197: 258.3403811 | D197: 230.2956629 | E197: 3.399163984 | F197: 0.1167046168 | H197: 100 | I197: 100 | J197: 100 | K197: 100 | L197: 100
A198: 9.85 | B198: 17.34680883 | C198: 259.0042378 | D198: 231.071559 | E198: 3.410616211 | F198: 0.1170978098 | H198: 100 | I198: 100 | J198: 100 | K198: 100 | L198: 100
A199: 9.9 | B199: 17.39099361 | C199: 259.6639583 | D199: 231.8434522 | E199: 3.422009354 | F199: 0.1174889744 | H199: 100 | I199: 100 | J199: 100 | K199: 100 | L199: 100
A200: 9.95 | B200: 17.43490323 | C200: 260.3195704 | D200: 232.6113684 | E200: 3.433343798 | F200: 0.1178781235 | H200: 100 | I200: 100 | J200: 100 | K200: 100 | L200: 100
... 1 more rows

Sheet Compartment Concentrations
B1: Concentration of chemical in Compartments (mol/m3) | I1: Concentration ratios
A2: Time (Hours): | B2: Membrane: | C2: Liver: | D2: Fast: | E2: Slow: | F2: Cw | G2: Cblood | I2: Blood:Water | J2: Membrane:Blood | K2: Liver:Blood | L2: Fast:Blood | M2: Slow:Blood
A3: 0.05 | B3: 0.9124769225 | C3: 0.3008165522 | D3: 0.465549426 | E3: 0.09341785614 | F3: 0.1560062468 | G3: 0.9503317565 | I3: =G3/F3 -> 6.091626303 | J3: =B3/G3 -> 0.9601667168 | K3: =C3/G3 -> 0.3165384615 | L3: =D3/G3 -> 0.4898809524 | M3: =E3/G3 -> 0.09830025726
A4: 0.1 | B4: 2.051368975 | C4: 0.6447134685 | D4: 0.9541252646 | E4: 0.2091967776 | F4: 0.1560062468 | G4: 1.197935224 | I4: =G4/F4 -> 7.678764464 | J4: =B4/G4 -> 1.712420616 | K4: =C4/G4 -> 0.5381872538 | L4: =D4/G4 -> 0.7964748389 | M4: =E4/G4 -> 0.1746311265
A5: 0.15 | B5: 3.269297422 | C5: 0.9789760226 | D5: 1.387107519 | E5: 0.3320625043 | F5: 0.1560062468 | G5: 1.294972516 | I5: 8.300773482 | J5: 2.524607573 | K5: 0.7559820846 | L5: 1.07114823 | M5: 0.2564243643
A6: 0.2 | B6: 4.530756103 | C6: 1.293352715 | D6: 1.758616191 | E6: 0.4583303207 | F6: 0.1560062468 | G6: 1.356052326 | I6: 8.692295046 | J6: 3.341136633 | K6: 0.953763133 | L6: 1.296864551 | M6: 0.3379886689
A7: 0.25 | B7: 5.824107998 | C7: 1.586518527 | D7: 2.075965714 | E7: 0.5867921059 | F7: 0.1560062468 | G7: 1.405574984 | I7: 9.009735268 | J7: 4.143576874 | K7: 1.128732757 | L7: 1.476951239 | M7: 0.4174747791
A8: 0.3 | B8: 7.143331625 | C8: 1.859107736 | D8: 2.347718199 | E8: 0.7168254987 | F8: 0.1560062468 | G8: 1.449239093 | I8: 9.289622196 | J8: 4.929022174 | K8: 1.282816441 | L8: 1.619966098 | M8: 0.4946219724
A9: 0.35 | B9: 8.484147859 | C9: 2.112229536 | D9: 2.581478606 | E9: 0.8479919148 | F9: 0.1560062468 | G9: 1.488780114 | I9: 9.543080128 | J9: 5.698724601 | K9: 1.418765281 | L9: 1.733955594 | M9: 0.5695884214
A10: 0.4 | B10: 9.843121135 | C10: 2.347124082 | D10: 2.783650706 | E10: 0.9799431436 | F10: 0.1560062468 | G10: 1.525022922 | I10: 9.775396517 | J10: 6.454408649 | K10: 1.539074626 | L10: 1.82531729 | M10: 0.6425760096
A11: 0.45 | B11: 11.21739626 | C11: 2.565062863 | D11: 2.959560225 | E11: 1.112393267 | F11: 0.1560062468 | G11: 1.558526197 | I11: 9.990152504 | J11: 7.197438378 | K11: 1.645825952 | L11: 1.898948013 | M11: 0.7137469165
A12: 0.5 | B12: 12.60457375 | C12: 2.767306988 | D12: 3.113623542 | E12: 1.245105531 | F12: 0.1560062468 | G12: 1.589728468 | I12: 10.19015905 | J12: 7.928758912 | K12: 1.740741922 | L12: 1.958588278 | M12: 0.7832189942
A13: 0.55 | B13: 14.00262939 | C13: 2.955083414 | D13: 3.249500951 | E13: 1.377883539 | F13: 0.1560062468 | G13: 1.618989288 | I13: 10.3777209 | J13: 8.648994462 | K13: 1.82526434 | L13: 2.007117018 | M13: 0.8510763776
A14: 0.6 | B14: 15.40984923 | C14: 3.129569549 | D14: 3.370226239 | E14: 1.510564373 | F14: 0.1560062468 | G14: 1.646606937 | I14: 10.55475002 | J14: 9.358547501 | K14: 1.900617251 | L14: 2.04677034 | M14: 0.9173800613
A15: 0.65 | B15: 16.82478255 | C15: 3.291883244 | D15: 3.478314439 | E15: 1.643012973 | F15: 0.1560062468 | G15: 1.672829697 | I15: 10.72283791 | J15: 10.05767807 | K15: 1.967853183 | L15: 2.079299791 | M15: 0.9821758761
A16: 0.7 | B16: 18.24619142 | C16: 3.443076697 | D16: 3.575851082 | E16: 1.775117484 | F16: 0.1560062468 | G16: 1.697864513 | I16: 10.88331107 | J16: 10.74655326 | K16: =C16/G16 -> 2.027886602 | L16: 2.106087414 | M16: 1.04550008
A17: 0.75 | B17: 19.67301987 | C17: 3.584133292 | D17: 3.664566045 | E17: 1.906785387 | F17: 0.1560062468 | G17: 1.721884018 | I17: 11.03727609 | J17: 11.42528745 | K17: 2.081518415 | L17: 2.128230477 | M17: 1.107383172
A18: 0.8 | B18: 21.10436625 | C18: 3.715966651 | D18: 3.745894663 | E18: 2.03794029 | F18: 0.1560062468 | G18: 1.745032338 | I18: 11.18565682 | J18: 12.09396857 | K18: 2.129454321 | L18: 2.146604725 | M18: 1.167852449
A19: 0.85 | B19: 22.5394524 | C19: 3.839421318 | D19: 3.821028287 | E19: 2.168519258 | F19: 0.1560062468 | G19: 1.767429896 | I19: 11.32922515 | J19: 12.75267124 | K19: 2.172318873 | L19: 2.161912218 | M19: 1.226933675
A20: 0.9 | B20: 23.97760737 | C20: 3.955274621 | D20: 3.890956127 | E20: 2.298470587 | F20: 0.1560062468 | G20: 1.789177397 | I20: 11.46862663 | J20: 13.40147009 | K20: 2.210666549 | L20: 2.174717909 | M20: 1.284652149
A21: 0.95 | B21: 25.41825119 | C21: 4.064239363 | D21: 3.956499884 | E21: 2.427751956 | F21: 0.1560062468 | G21: 1.810359136 | I21: 11.60440157 | J21: 14.04044683 | K21: 2.244990666 | L21: 2.185477901 | M21: 1.341033338
A22: 1 | B22: 26.86087698 | C22: 4.166967071 | D22: 4.01834241 | E22: 2.55632888 | F22: 0.1560062468 | G22: 1.831045745 | I22: 11.73700273 | J22: 14.66969193 | K22: 2.275730731 | L22: 2.194561453 | M22: 1.396103231
A23: 1.05 | B23: 28.30504125 | C23: 4.26405158 | D23: 4.077051443 | E23: 2.684173433 | F23: 0.1560062468 | G23: 1.851296471 | I23: 11.86680988 | J23: 15.28930763 | K23: 2.30327862 | L23: 2.202268253 | M23: 1.449888484
A24: 1.1 | B24: 29.75035246 | C24: 4.356032799 | D24: 4.133099256 | E24: 2.811263167 | F24: 0.1560062468 | G24: 1.87116107 | I24: 11.99414196 | J24: 15.89940756 | K24: 2.327983875 | L24: 2.208842051 | M24: 1.502416447
A25: 1.15 | B25: 31.19646946 | C25: 4.443400532 | D25: 4.18687893 | E25: 2.937580225 | F25: 0.1560062468 | G25: 1.890681384 | I25: 12.11926716 | J25: 16.50011987 | K25: 2.350158292 | L25: 2.214481491 | M25: 1.553715105
A26: 1.2 | B26: 32.64308358 | C26: 4.526598266 | D26: 4.238717833 | E26: 3.063110591 | F26: 0.1560062468 | G26: 1.909892649 | I26: 12.24241137 | J26: 17.0915803 | K26: 2.370079946 | L26: 2.219348734 | M26: 1.603812964
A27: 1.25 | B27: 34.08991865 | C27: 4.60602686 | D27: 4.288888793 | E27: 3.187843467 | F27: 0.1560062468 | G27: 1.928824583 | I27: 12.36376506 | J27: 17.67393414 | K27: 2.387996762 | L27: 2.223576384 | M27: 1.652738925
A28: 1.3 | B28: 35.53673097 | C28: 4.682048085 | D28: 4.337619343 | E28: 3.311770753 | F28: 0.1560062468 | G28: 1.947502292 | I28: 12.48348917 | J28: 18.24733717 | K28: 2.404129692 | L28: 2.227273037 | M28: 1.700522134
A29: 1.35 | B29: 36.98329635 | C29: 4.754987993 | D29: 4.385099402 | E29: 3.434886609 | F29: 0.1560062468 | G29: 1.965947026 | I29: 12.60171991 | J29: 18.81194959 | K29: 2.418675545 | L29: 2.230527753 | M29: 1.747191844
A30: 1.4 | B30: 38.4294101 | C30: 4.825140082 | D30: 4.431487625 | E30: 3.557187087 | F30: 0.1560062468 | G30: 1.984176806 | I30: 12.71857279 | J30: 19.36793636 | K30: 2.431809538 | L30: 2.233413681 | M30: 1.792777275
A31: 1.45 | B31: 39.87488702 | C31: 4.892768262 | D31: 4.476916683 | E31: 3.678669834 | F31: 0.1560062468 | G31: 2.00220695 | I31: 12.83414601 | J31: 19.91546729 | K31: 2.443687583 | L31: 2.235990982 | M31: 1.837307494
A32: 1.5 | B32: 41.31955815 | C32: 4.958109608 | D32: 4.521497633 | E32: 3.799333824 | F32: 0.1560062468 | G32: 2.020050505 | I32: 12.94852319 | J32: 20.45471539 | K32: 2.45444834 | L32: 2.238309202 | M32: 1.880811304
A33: 1.55 | B33: 42.76326104 | C33: 5.021376907 | D33: 4.565323552 | E33: 3.919179152 | F33: 0.1560062468 | G33: 2.037718619 | I33: 13.0617758 | J33: 20.98585184 | K33: 2.464215059 | L33: 2.240409205 | M33: 1.923317142
A34: 1.6 | B34: 44.20584947 | C34: 5.082761 | D34: 4.608472545 | E34: 4.038206847 | F34: 0.1560062468 | G34: 2.055220838 | I34: 13.17396502 | J34: 21.50905083 | K34: 2.473097249 | L34: 2.242324747 | M34: 1.964853009
A35: 1.65 | B35: 45.64718698 | C35: 5.142432933 | D35: 4.65101025 | E35: 4.156418725 | F35: 0.1560062468 | G35: 2.072565363 | I35: 13.28514342 | J35: 22.02448607 | K35: 2.481192161 | L35: 2.244083749 | M35: 2.00544639
A36: 1.7 | B36: 47.0871436 | C36: 5.200545922 | D36: 4.692991913 | E36: 4.273817258 | F36: 0.1560062468 | G36: 2.089759268 | I36: 13.39535634 | J36: 22.53232912 | K36: 2.488586127 | L36: 2.245709344 | M36: 2.045124204
A37: 1.75 | B37: 48.52559911 | C37: 5.25723714 | D37: 4.734464115 | E37: 4.390405464 | F37: 0.1560062468 | G37: 2.106808667 | I37: 13.50464299 | J37: 23.03275085 | K37: 2.495355759 | L37: 2.247220732 | M37: 2.08391276
A38: 1.8 | B38: 49.96243655 | C38: 5.312629349 | D38: 4.775466208 | E38: 4.506186824 | F38: 0.1560062468 | G38: 2.123718875 | I38: 13.61303742 | J38: 23.5259182 | K38: 2.501569021 | L38: 2.248633877 | M38: 2.121837723
A39: 1.85 | B39: 51.3975487 | C39: 5.366832371 | D39: 4.816031505 | E39: 4.621165197 | F39: 0.1560062468 | G39: 2.140494524 | I39: 13.72056932 | J39: 24.01199729 | K39: 2.507286195 | L39: 2.249962077 | M39: 2.158924092
A40: 1.9 | B40: 52.83083157 | C40: 5.419944428 | D40: 4.856188277 | E40: 4.73534476 | F40: 0.1560062468 | G40: 2.157139671 | I40: 13.82726471 | J40: 24.49115015 | K40: 2.512560731 | L40: 2.251216434 | M40: 2.195196178
A41: 1.95 | B41: 54.26218445 | C41: 5.472053348 | D41: 4.895960576 | E41: 4.848729954 | F41: 0.1560062468 | G41: 2.173657886 | I41: 13.93314647 | J41: 24.96353488 | K41: 2.517440018 | L41: 2.252406235 | M41: 2.230677599
A42: 2 | B42: 55.69150987 | C42: 5.523237653 | D42: 4.935368923 | E42: 4.961325436 | F42: 0.1560062468 | G42: 2.190052328 | I42: 14.03823483 | J42: 25.42930558 | K42: 2.521966066 | L42: 2.25353927 | M42: 2.265391275
A43: 2.05 | B43: 57.11872334 | C43: 5.573567537 | D43: 4.974430881 | E43: 5.073136037 | F43: 0.1560062468 | G43: 2.206325799 | I43: 14.14254778 | J43: 25.88861689 | K43: 2.526176116 | L43: 2.254622089 | M43: 2.299359433
A44: 2.1 | B44: 58.54373389 | C44: 5.623105757 | D44: 5.013161535 | E44: 5.184166736 | F44: 0.1560062468 | G44: 2.222480811 | I44: 14.2461014 | J44: 26.34161501 | K44: 2.530103176 | L44: 2.255660212 | M44: 2.332603598
A45: 2.15 | B45: 59.96645703 | C45: 5.671908416 | D45: 5.051573892 | E45: 5.294422627 | F45: 0.1560062468 | G45: 2.238519615 | I45: 14.34891013 | J45: 26.78844386 | K45: 2.533776509 | L45: 2.25665831 | M45: 2.365144621
A46: 2.2 | B46: 61.3868148 | C46: 5.720025679 | D46: 5.089679208 | E46: 5.403908895 | F46: 0.1560062468 | G46: 2.254444247 | I46: 14.45098702 | J46: 27.22924503 | K46: 2.537222061 | L46: 2.257620349 | M46: 2.397002677
A47: 2.25 | B47: 62.80472272 | C47: 5.767502413 | D47: 5.12748727 | E47: 5.512630799 | F47: 0.1560062468 | G47: 2.270256559 | I47: 14.55234393 | J47: 27.66415209 | K47: 2.540462835 | L47: 2.2585497 | M47: 2.428197279
A48: 2.3 | B48: 64.2201093 | C48: 5.814378752 | D48: 5.165006626 | E48: 5.620593651 | F48: 0.1560062468 | G48: 2.285958237 | I48: 14.65299168 | J48: 28.09329946 | K48: 2.543519238 | L48: 2.259449251 | M48: 2.458747303
A49: 2.35 | B49: 65.63290305 | C49: 5.860690616 | D49: 5.202244783 | E49: 5.727802804 | F49: 0.1560062468 | G49: 2.301550838 | I49: 14.75294025 | J49: 28.51681657 | K49: 2.546409369 | L49: 2.260321474 | M49: 2.488670991
A50: 2.4 | B50: 67.04302601 | C50: 5.906470163 | D50: 5.239208365 | E50: 5.834263639 | F50: 0.1560062468 | G50: 2.317035798 | I50: 14.85219884 | J50: 28.93482529 | K50: 2.549149291 | L50: 2.261168502 | M50: 2.517985973
A51: 2.45 | B51: 68.45041319 | C51: 5.951746202 | D51: 5.275903254 | E51: 5.939981554 | F51: 0.1560062468 | G51: 2.33241445 | I51: 14.950776 | J51: 29.3474486 | K51: 2.551753271 | L51: 2.261992183 | M51: 2.546709292
A52: 2.5 | B52: 69.85499961 | C52: 5.996544554 | D52: 5.312334698 | E52: 6.044961954 | F52: 0.1560062468 | G52: 2.347688041 | I52: 15.04867971 | J52: 29.75480489 | K52: 2.554233974 | L52: 2.262794121 | M52: 2.574857412
A53: 2.55 | B53: 71.25671378 | C53: 6.040888383 | D53: 5.348507412 | E53: 6.149210248 | F53: 0.1560062468 | G53: 2.362857744 | I53: =G53/F53 -> 15.1459175 | J53: =B53/G53 -> 30.15700542 | K53: =C53/G53 -> 2.556602656 | L53: =D53/G53 -> 2.263575718 | M53: =E53/G53 -> 2.602446239
A54: 2.6 | B54: 72.65549722 | C54: 6.084798483 | D54: 5.384425658 | E54: 6.252731835 | F54: 0.1560062468 | G54: 2.377924659 | I54: 15.24249642 | J54: 30.55416283 | K54: 2.558869332 | L54: 2.264338207 | M54: 2.629491145
A55: 2.65 | B55: 74.05129144 | C55: 6.128293541 | D55: 5.420093309 | E55: 6.355532105 | F55: 0.1560062468 | G55: 2.392889836 | I55: 15.33842321 | J55: 30.94638555 | K55: 2.561042907 | L55: 2.265082674 | M55: 2.656006979
A56: 2.7 | B56: 75.44403147 | C56: 6.171390368 | D56: 5.455513913 | E56: 6.457616432 | F56: 0.1560062468 | G56: 2.407754274 | I56: 15.43370425 | J56: 31.33377533 | K56: 2.563131311 | L56: 2.265810084 | M56: 2.682008086
A57: 2.75 | B57: 76.83366532 | C57: 6.214104101 | D57: 5.49069073 | E57: 6.558990168 | F57: 0.1560062468 | G57: 2.422518923 | I57: 15.52834564 | J57: 31.71643556 | K57: 2.565141615 | L57: 2.266521297 | M57: 2.707508332
A58: 2.8 | B58: 78.22013449 | C58: 6.256448393 | D58: 5.525626786 | E58: 6.659658644 | F58: 0.1560062468 | G58: 2.437184699 | I58: 15.62235326 | J58: 32.09446314 | K58: 2.567080121 | L58: 2.267217084 | M58: 2.732521112
A59: 2.85 | B59: 79.60338051 | C59: 6.298435574 | D59: 5.560324896 | E59: 6.759627162 | F59: 0.1560062468 | G59: 2.451752483 | I59: 15.71573275 | J59: 32.46795143 | K59: 2.568952461 | L59: 2.267898141 | M59: 2.757059373
A60: 2.9 | B60: 80.9833514 | C60: 6.340076793 | D60: 5.594787697 | E60: 6.858900998 | F60: 0.1560062468 | G60: 2.466223121 | I60: 15.80848954 | J60: 32.83699302 | K60: 2.570763667 | L60: 2.268565099 | M60: 2.781135632
A61: 2.95 | B61: 82.35999515 | C61: 6.381382155 | D61: 5.629017673 | E61: 6.957485395 | F61: 0.1560062468 | G61: 2.480597437 | I61: 15.9006289 | J61: 33.20167712 | K61: 2.572518241 | L61: 2.269218532 | M61: 2.804761987
A62: 3 | B62: 83.7332663 | C62: 6.422360828 | D62: 5.663017173 | E62: 7.055385563 | F62: 0.1560062468 | G62: 2.494876229 | I62: 15.99215596 | J62: 33.56209231 | K62: 2.574220217 | L62: 2.269858964 | M62: 2.827950132
A63: 3.05 | B63: 85.10310634 | C63: 6.463021155 | D63: 5.696788435 | E63: 7.152606681 | F63: 0.1560062468 | G63: 2.509060278 | I63: 16.08307571 | J63: 33.91831878 | K63: 2.575873211 | L63: 2.270486877 | M63: 2.850711377
A64: 3.1 | B64: 86.4694763 | C64: 6.503370737 | D64: 5.730333591 | E64: 7.249153889 | F64: 0.1560062468 | G64: 2.523150337 | I64: 16.17339298 | J64: 34.27044161 | K64: 2.577480478 | L64: 2.271102719 | M64: 2.873056663
A65: 3.15 | B65: 87.83232418 | C65: 6.543416517 | D65: 5.763654691 | E65: 7.345032295 | F65: 0.1560062468 | G65: 2.537147151 | I65: 16.26311256 | J65: 34.61853765 | K65: 2.579044938 | L65: 2.2717069 | M65: 2.894996568
A66: 3.2 | B66: 89.191611 | C66: 6.583164857 | D66: 5.796753703 | E66: 7.440246968 | F66: 0.1560062468 | G66: 2.551051442 | I66: 16.35223906 | J66: 34.96268618 | K66: 2.58056923 | L66: 2.272299808 | M66: 2.91654133
A67: 3.25 | B67: 90.54728477 | C67: 6.622621592 | D67: 5.829632531 | E67: 7.534802938 | F67: 0.1560062468 | G67: 2.564863924 | I67: 16.44077706 | J67: 35.30295854 | K67: 2.58205573 | L67: 2.272881799 | M67: 2.937700853
A68: 3.3 | B68: 91.8993065 | C68: 6.661792098 | D68: 5.862293016 | E68: 7.6287052 | F68: 0.1560062468 | G68: 2.578585291 | I68: 16.52873102 | J68: 35.63942865 | K68: 2.583506593 | L68: 2.273453214 | M68: 2.958484727
A69: 3.35 | B69: 93.24763719 | C69: 6.700681334 | D69: 5.894736948 | E69: 7.721958708 | F69: 0.1560062468 | G69: 2.592216229 | I69: 16.61610533 | J69: 35.97216782 | K69: 2.584923765 | L69: 2.274014368 | M69: 2.978902232
A70: 3.4 | B70: 94.59223787 | C70: 6.739293892 | D70: 5.92696607 | E70: 7.81456838 | F70: 0.1560062468 | G70: 2.605757414 | I70: 16.70290432 | J70: 36.30124484 | K70: 2.586309016 | L70: 2.27456556 | M70: 2.998962351
A71: 3.45 | B71: 95.93306304 | C71: 6.777634035 | D71: 5.958982081 | E71: 7.906539093 | F71: 0.1560062468 | G71: 2.619209511 | I71: 16.78913226 | J71: 36.62672369 | K71: 2.587663952 | L71: 2.275107072 | M71: 3.018673787
A72: 3.5 | B72: 97.27008021 | C72: 6.815705733 | D72: 5.990786643 | E72: 7.997875686 | F72: 0.1560062468 | G72: 2.632573172 | I72: 16.87479332 | J72: 36.94867108 | K72: 2.588990045 | L72: 2.275639176 | M72: 3.038044971
A73: 3.55 | B73: 98.60325039 | C73: 6.853512696 | D73: 6.022381384 | E73: 8.088582958 | F73: 0.1560062468 | G73: 2.645849044 | I73: 16.95989166 | J73: 37.26714894 | K73: 2.59028863 | L73: 2.276162125 | M73: 3.057084068
A74: 3.6 | B74: 99.93253459 | C74: 6.891058398 | D74: 6.053767898 | E74: 8.178665672 | F74: 0.1560062468 | G74: 2.659037765 | I74: 17.04443136 | J74: 37.58221711 | K74: 2.591560936 | L74: 2.276676164 | M74: 3.07579899
A75: 3.65 | B75: 101.2579003 | C75: 6.928346106 | D75: 6.084947753 | E75: 8.268128547 | F75: 0.1560062468 | G75: 2.672139961 | I75: 17.12841643 | J75: 37.89393587 | K75: 2.592808089 | L75: 2.277181525 | M75: 3.09419741
A76: 3.7 | B76: 102.5793151 | C76: 6.9653789 | D76: 6.11592249 | E76: 8.356976268 | F76: 0.1560062468 | G76: 2.685156256 | I76: 17.21185088 | J76: 38.2023634 | K76: 2.594031123 | L76: 2.277678431 | M76: 3.112286761
A77: 3.75 | B77: 103.8967464 | C77: 7.002159693 | D77: 6.146693625 | E77: 8.445213478 | F77: 0.1560062468 | G77: 2.698087265 | I77: 17.29473864 | J77: 38.50755599 | K77: 2.595230993 | L77: 2.278167094 | M77: 3.130074252
A78: 3.8 | B78: 105.2101553 | C78: 7.038691249 | D78: 6.177262654 | E78: 8.532844783 | F78: 0.1560062468 | G78: 2.710933596 | I78: 17.37708362 | J78: 38.80956562 | K78: 2.59640858 | L78: 2.278647718 | M78: 3.147566874
A79: 3.85 | B79: 106.5195222 | C79: 7.074976198 | D79: 6.207631048 | E79: 8.619874751 | F79: 0.1560062468 | G79: 2.723695847 | I79: 17.45888965 | J79: 39.10844976 | K79: 2.597564704 | L79: 2.279120502 | M79: 3.164771411
A80: 3.9 | B80: 107.8248082 | C80: 7.111017051 | D80: 6.237800264 | E80: 8.706307909 | F80: 0.1560062468 | G80: 2.736374619 | I80: 17.54016057 | J80: 39.40425681 | K80: 2.59870012 | L80: 2.279585631 | M80: 3.181694439
A81: 3.95 | B81: 109.1259938 | C81: 7.146816208 | D81: 6.267771737 | E81: 8.792148749 | F81: 0.1560062468 | G81: 2.748970498 | I81: 17.62090015 | J81: 39.69704073 | K81: 2.599815536 | L81: 2.28004329 | M81: 3.198342345
A82: 4 | B82: 110.42304 | C82: 7.182375976 | D82: 6.297546886 | E82: 8.877401725 | F82: 0.1560062468 | G82: 2.761484071 | I82: 17.70111215 | J82: 39.98684663 | K82: 2.600911608 | L82: 2.28049365 | M82: 3.214721323
A83: 4.05 | B83: 111.7159273 | C83: 7.217698571 | D83: 6.327127115 | E83: 8.962071252 | F83: 0.1560062468 | G83: 2.773915911 | I83: 17.78080024 | J83: 40.27372525 | K83: 2.601988958 | L83: 2.280936884 | M83: 3.230837394
A84: 4.1 | B84: 113.0046166 | C84: 7.252786133 | D84: 6.356513809 | E84: 9.046161709 | F84: 0.1560062468 | G84: 2.786266595 | I84: 17.85996812 | J84: 40.55771865 | K84: 2.60304816 | L84: 2.281373154 | M84: 3.246696395
A85: 4.15 | B85: 114.2890951 | C85: 7.287640727 | D85: 6.385708339 | E85: 9.129677436 | F85: 0.1560062468 | G85: 2.798536684 | I85: 17.93861939 | J85: 40.83887689 | K85: 2.604089762 | L85: 2.281802621 | M85: 3.262304007
A86: 4.2 | B86: 115.5693367 | C86: 7.322264356 | D86: 6.414712065 | E86: 9.21262274 | F86: 0.1560062468 | G86: 2.810726745 | I86: 18.01675768 | J86: 41.11724375 | K86: 2.605114272 | L86: 2.282225434 | M86: 3.277665734
A87: 4.25 | B87: 116.8453154 | C87: 7.356658966 | D87: 6.44352633 | E87: 9.295001888 | F87: 0.1560062468 | G87: 2.822837337 | I87: 18.09438657 | J87: 41.39286167 | K87: 2.60612217 | L87: 2.28264174 | M87: 3.29278693
A88: 4.3 | B88: 118.1170182 | C88: 7.390826445 | D88: 6.472152466 | E88: 9.376819113 | F88: 0.1560062468 | G88: 2.83486901 | I88: 18.17150959 | J88: 41.66577637 | K88: 2.607113915 | L88: 2.283051683 | M88: 3.307672798
A89: 4.35 | B89: 119.3844062 | C89: 7.42476864 | D89: 6.500591795 | E89: 9.458078612 | F89: 0.1560062468 | G89: 2.846822319 | I89: 18.2481303 | J89: 41.93602298 | K89: 2.608089936 | L89: 2.283455399 | M89: 3.32232839
A90: 4.4 | B90: 120.6474663 | C90: 7.458487348 | D90: 6.528845623 | E90: 9.538784547 | F90: 0.1560062468 | G90: 2.858697799 | I90: 18.32425212 | J90: 42.20364473 | K90: 2.609050649 | L90: 2.283853027 | M90: 3.336758628
A91: 4.45 | B91: 121.9061855 | C91: 7.491984325 | D91: 6.556915242 | E91: 9.618941043 | F91: 0.1560062468 | G91: 2.870495992 | I91: 18.39987853 | J91: 42.46868343 | K91: 2.609996442 | L91: 2.284244695 | M91: 3.350968289
A92: 4.5 | B92: 123.1605249 | C92: 7.525261296 | D92: 6.58480194 | E92: 9.698552192 | F92: 0.1560062468 | G92: 2.882217435 | I92: 18.47501299 | J92: 42.7311706 | K92: 2.610927685 | L92: 2.284630527 | M92: 3.364962016
A93: 4.55 | B93: 124.4104845 | C93: 7.558319944 | D93: 6.612506985 | E93: 9.77762205 | F93: 0.1560062468 | G93: 2.893862652 | I93: 18.54965882 | J93: 42.9911504 | K93: 2.61184474 | L93: 2.285010652 | M93: 3.378744338
A94: 4.6 | B94: 125.6560382 | C94: 7.591161927 | D94: 6.640031641 | E94: 9.856154641 | F94: 0.1560062468 | G94: 2.905432174 | I94: 18.62381946 | J94: 43.24865653 | K94: 2.612747939 | L94: 2.285385183 | M94: 3.392319644
A95: 4.65 | B95: 126.8971731 | C95: 7.62378887 | D95: 6.667377157 | E95: 9.934153952 | F95: 0.1560062468 | G95: 2.916926523 | I95: 18.69749822 | J95: 43.50372629 | K95: 2.613637612 | L95: 2.285754237 | M95: 3.405692216
A96: 4.7 | B96: 128.1338631 | C96: 7.656202373 | D96: 6.694544777 | E96: 10.01162394 | F96: 0.1560062468 | G96: 2.928346216 | I96: 18.77069845 | J96: 43.75639137 | K96: 2.614514067 | L96: 2.286117926 | M96: 3.418866214
A97: 4.75 | B97: 129.3660953 | C97: 7.688404011 | D97: 6.721535727 | E97: 10.08856853 | F97: 0.1560062468 | G97: 2.939691763 | I97: 18.84342341 | J97: 44.006687 | K97: 2.615377608 | L97: 2.286476361 | M97: 3.431845696
A98: 4.8 | B98: 130.5938567 | C98: 7.720395333 | D98: 6.748351227 | E98: 10.1649916 | F98: 0.1560062468 | G98: 2.950963675 | I98: 18.91567636 | J98: 44.25464732 | K98: 2.616228522 | L98: 2.28682965 | M98: 3.444634607
A99: 4.85 | B99: 131.8171342 | C99: 7.752177868 | D99: 6.774992487 | E99: 10.24089701 | F99: 0.1560062468 | G99: 2.962162457 | I99: 18.98746055 | J99: 44.50030549 | K99: 2.617067086 | L99: 2.287177893 | M99: 3.457236786
A100: 4.9 | B100: 133.035915 | C100: 7.783753125 | D100: 6.801460708 | E100: 10.31628859 | F100: 0.1560062468 | G100: 2.973288612 | I100: 19.0587792 | J100: 44.74369371 | K100: 2.617893565 | L100: 2.287521191 | M100: 3.469655972
A101: 4.95 | B101: 134.2501729 | C101: 7.815122592 | D101: 6.827757081 | E101: 10.39117013 | F101: 0.1560062468 | G101: 2.98434264 | I101: 19.12963552 | J101: 44.98483891 | K101: 2.618708217 | L101: 2.287859641 | M101: 3.481895809
A102: 5 | B102: 135.459908 | C102: 7.846287739 | D102: 6.853882786 | E102: 10.46554538 | F102: 0.1560062468 | G102: 2.995325027 | I102: 19.20003261 | J102: 45.22377599 | K102: 2.619511295 | L102: 2.288193343 | M102: 3.493959851
A103: 5.05 | B103: 136.6651073 | C103: 7.877250019 | D103: 6.879838994 | E103: 10.53941809 | F103: 0.1560062468 | G103: 3.006236268 | I103: =G103/F103 -> 19.26997367 | J103: =B103/G103 -> 45.46053442 | K103: =C103/G103 -> 2.620303036 | L103: =D103/G103 -> 2.288522385 | M103: =E103/G103 -> 3.505851552
A104: 5.1 | B104: 137.8657578 | C104: 7.908010868 | D104: 6.905626869 | E104: 10.61279193 | F104: 0.1560062468 | G104: 3.01707685 | I104: 19.3394618 | J104: 45.69514291 | K104: 2.621083671 | L104: 2.288846858 | M104: 3.517574281
A105: 5.15 | B105: 139.0618465 | C105: 7.938571707 | D105: 6.931247566 | E105: 10.68567059 | F105: 0.1560062468 | G105: 3.027847256 | I105: 19.4085001 | J105: 45.92762936 | K105: 2.621853428 | L105: 2.28916685 | M105: 3.529131321
A106: 5.2 | B106: 140.2533604 | C106: 7.968933942 | D106: 6.956702228 | E106: 10.75805769 | F106: 0.1560062468 | G106: 3.038547963 | I106: 19.47709162 | J106: 46.15802092 | K106: 2.622612524 | L106: 2.289482448 | M106: 3.540525876
A107: 5.25 | B107: 141.4402995 | C107: 7.999098963 | D107: 6.981991991 | E107: 10.82995684 | F107: 0.1560062468 | G107: 3.049179444 | I107: 19.54523942 | J107: 46.38634824 | K107: 2.623361173 | L107: 2.289793736 | M107: 3.551761068
A108: 5.3 | B108: 142.6226509 | C108: 8.029068148 | D108: 7.007117983 | E108: 10.90137162 | F108: 0.1560062468 | G108: 3.059742176 | I108: 19.61294652 | J108: 46.61263683 | K108: 2.624099576 | L108: 2.290100793 | M108: 3.562839936
A109: 5.35 | B109: 143.8004014 | C109: 8.05884286 | D109: 7.032081323 | E109: 10.97230557 | F109: 0.1560062468 | G109: 3.070236626 | I109: 19.68021595 | J109: 46.83691158 | K109: 2.624827934 | L109: 2.290403698 | M109: 3.573765447
A110: 5.4 | B110: 144.9735381 | C110: 8.088424451 | D110: 7.056883121 | E110: 11.04276221 | F110: 0.1560062468 | G110: 3.080663256 | I110: 19.74705064 | J110: 47.05919669 | K110: 2.625546442 | L110: 2.290702532 | M110: 3.584540501
A111: 5.45 | B111: 146.1420611 | C111: 8.117814256 | D111: 7.081524477 | E111: 11.11274503 | F111: 0.1560062468 | G111: 3.091022524 | I111: 19.81345355 | J111: 47.27951994 | K111: 2.62625529 | L111: 2.290997371 | M111: 3.595167923
A112: 5.5 | B112: 147.3059702 | C112: 8.147013603 | D112: 7.106006482 | E112: 11.18225748 | F112: 0.1560062468 | G112: 3.10131489 | I112: 19.87942761 | J112: 47.49790828 | K112: 2.62695466 | L112: 2.291288287 | M112: 3.605650465
A113: 5.55 | B113: 148.4652526 | C113: 8.176023806 | D113: 7.130330226 | E113: 11.25130299 | F113: 0.1560062468 | G113: 3.111540814 | I113: 19.94497578 | J113: 47.71438379 | K113: 2.627644725 | L113: 2.291575349 | M113: 3.615990811
A114: 5.6 | B114: 149.6198952 | C114: 8.204846168 | D114: 7.154496783 | E114: 11.31988497 | F114: 0.1560062468 | G114: 3.121700743 | I114: 20.01010092 | J114: 47.92896805 | K114: 2.628325661 | L114: 2.291858628 | M114: 3.626191588
A115: 5.65 | B115: 150.769898 | C115: 8.233481979 | D115: 7.178507222 | E115: 11.38800679 | F115: 0.1560062468 | G115: 3.131795121 | I115: 20.07480588 | J115: 48.14168621 | K115: 2.628997639 | L115: 2.292138197 | M115: 3.63625536
A116: 5.7 | B116: 151.915261 | C116: 8.261932521 | D116: 7.202362603 | E116: 11.4556718 | F116: 0.1560062468 | G116: 3.141824394 | I116: 20.13909352 | J116: 48.35256271 | K116: 2.629660823 | L116: 2.29241412 | M116: 3.646184625
A117: 5.75 | B117: 153.0559713 | C117: 8.290199063 | D117: 7.22606398 | E117: 11.52288331 | F117: 0.1560062468 | G117: 3.151789005 | I117: 20.20296667 | J117: 48.56161724 | K117: 2.63031537 | L117: 2.292686461 | M117: 3.655981822
A118: 5.8 | B118: 154.1920288 | C118: 8.318282863 | D118: 7.249612395 | E118: 11.58964461 | F118: 0.1560062468 | G118: 3.161689388 | I118: 20.26642813 | J118: 48.76887316 | K118: 2.630961439 | L118: 2.292955286 | M118: 3.665649337
A119: 5.85 | B119: 155.3234335 | C119: 8.346185172 | D119: 7.273008888 | E119: 11.65595897 | F119: 0.1560062468 | G119: 3.17152598 | I119: 20.32948068 | J119: 48.97435318 | K119: 2.631599181 | L119: 2.293220656 | M119: 3.675189496
A120: 5.9 | B120: 156.4501854 | C120: 8.373907227 | D120: 7.296254486 | E120: 11.72182962 | F120: 0.1560062468 | G120: 3.181299212 | I120: 20.39212709 | J120: 49.17807945 | K120: 2.632228744 | L120: 2.293482631 | M120: 3.684604572
A121: 5.95 | B121: 157.5722715 | C121: 8.40145026 | D121: 7.319350215 | E121: 11.78725978 | F121: 0.1560062468 | G121: 3.191009515 | I121: 20.45437013 | J121: 49.38006947 | K121: 2.632850269 | L121: 2.293741269 | M121: 3.693896782
A122: 6 | B122: 158.6896919 | C122: 8.428815488 | D122: 7.342297086 | E122: 11.85225263 | F122: 0.1560062468 | G122: 3.200657309 | I122: 20.51621249 | J122: 49.58034447 | K122: 2.633463903 | L122: 2.293996632 | M122: 3.703068302
A123: 6.05 | B123: 159.8024465 | C123: 8.456004122 | D123: 7.365096106 | E123: 11.91681132 | F123: 0.1560062468 | G123: 3.210243015 | I123: 20.57765686 | J123: 49.77892506 | K123: 2.634069783 | L123: 2.294248775 | M123: 3.712121253
A124: 6.1 | B124: 160.9105353 | C124: 8.483017361 | D124: 7.387748274 | E124: 11.980939 | F124: 0.1560062468 | G124: 3.219767054 | I124: 20.63870595 | J124: 49.97583137 | K124: 2.634668043 | L124: 2.294497754 | M124: 3.721057704
A125: 6.15 | B125: 162.0139584 | C125: 8.509856397 | D125: 7.410254581 | E125: 12.04463876 | F125: 0.1560062468 | G125: 3.229229841 | I125: 20.69936241 | J125: 50.17108301 | K125: 2.635258813 | L125: 2.294743622 | M125: 3.72987968
A126: 6.2 | B126: 163.1127157 | C126: 8.53652241 | D126: 7.432616014 | E126: 12.1079137 | F126: 0.1560062468 | G126: 3.238631789 | I126: 20.75962889 | J126: 50.36469914 | K126: 2.635842222 | L126: 2.294986432 | M126: 3.73858916
A127: 6.25 | B127: 164.2068072 | C127: 8.563016575 | D127: 7.454833548 | E127: 12.17076686 | F127: 0.1560062468 | G127: 3.247973308 | I127: 20.81950803 | J127: 50.55669847 | K127: 2.636418395 | L127: 2.295226236 | M127: 3.747188078
A128: 6.3 | B128: 165.2962329 | C128: 8.589340055 | D128: 7.476908156 | E128: 12.23320128 | F128: 0.1560062468 | G128: 3.257254805 | I128: 20.87900242 | J128: 50.74709926 | K128: 2.636987454 | L128: 2.295463083 | M128: 3.755678327
A129: 6.35 | B129: 166.3809798 | C129: 8.615494006 | D129: 7.498840801 | E129: 12.29521996 | F129: 0.1560062468 | G129: 3.266476683 | I129: 20.93811466 | J129: 50.93591537 | K129: 2.63754952 | L129: 2.295697025 | M129: 3.764061757
A130: 6.4 | B130: 167.461061 | C130: 8.641479572 | D130: 7.520632434 | E130: 12.3568259 | F130: 0.1560062468 | G130: 3.275639335 | I130: 20.99684726 | J130: 51.12316831 | K130: 2.638104714 | L130: 2.295928112 | M130: 3.772340185
A131: 6.45 | B131: 168.5364894 | C131: 8.66729789 | D131: 7.542284006 | E131: 12.41802204 | F131: 0.1560062468 | G131: 3.284743164 | I131: 21.0552028 | J131: 51.30887897 | K131: 2.638653148 | L131: 2.29615639 | M131: 3.780515376
A132: 6.5 | B132: 169.6072521 | C132: 8.692950091 | D132: 7.56379646 | E132: 12.47881132 | F132: 0.1560062468 | G132: 3.293788571 | I132: 21.11318385 | J132: 51.49305987 | K132: 2.639194928 | L132: 2.296381901 | M132: 3.788589053
A133: 6.55 | B133: 170.6733489 | C133: 8.718437296 | D133: 7.585170731 | E133: 12.53919666 | F133: 0.1560062468 | G133: 3.302775942 | I133: 21.1707929 | J133: 51.67572731 | K133: 2.639730169 | L133: 2.296604694 | M133: 3.796562916
A134: 6.6 | B134: 171.734793 | C134: 8.743760614 | D134: 7.606407747 | E134: 12.59918095 | F134: 0.1560062468 | G134: 3.311705663 | I134: 21.22803241 | J134: 51.85690109 | K134: 2.640258979 | L134: 2.296824815 | M134: 3.804438627
A135: 6.65 | B135: 172.7915843 | C135: 8.768921152 | D135: 7.627508429 | E135: 12.65876704 | F135: 0.1560062468 | G135: 3.320578126 | I135: 21.28490489 | J135: 52.03659657 | K135: 2.64078146 | L135: 2.297042304 | M135: 3.812217799
A136: 6.7 | B136: 173.8437229 | C136: 8.793920006 | D136: 7.648473693 | E136: 12.71795778 | F136: 0.1560062468 | G136: 3.329393713 | I136: 21.3414128 | J136: 52.21482883 | K136: 2.641297715 | L136: 2.297257204 | M136: 3.819902022
A137: 6.75 | B137: 174.8912086 | C137: 8.818758262 | D137: 7.669304448 | E137: 12.77675599 | F137: 0.1560062468 | G137: 3.338152804 | I137: 21.39755857 | J137: 52.39161263 | K137: 2.641807844 | L137: 2.297469558 | M137: 3.82749285
A138: 6.8 | B138: 175.9340546 | C138: 8.843437 | D138: 7.690001592 | E138: 12.83516446 | F138: 0.1560062468 | G138: 3.346855773 | I138: 21.4533446 | J138: 52.56696628 | K138: 2.642311949 | L138: 2.297679408 | M138: 3.834991806
A139: 6.85 | B139: 176.9722478 | C139: 8.867957292 | D139: 7.710566022 | E139: 12.89318598 | F139: 0.1560062468 | G139: 3.355503001 | I139: 21.50877333 | J139: 52.74089987 | K139: 2.642810121 | L139: 2.297886791 | M139: 3.842400373
A140: 6.9 | B140: 178.0058142 | C140: 8.892320199 | D140: 7.730998624 | E140: 12.95082329 | F140: 0.1560062468 | G140: 3.364094851 | I140: 21.56384709 | J140: 52.91343499 | K140: 2.643302462 | L140: 2.29809175 | M140: 3.849720018
A141: 6.95 | B141: 179.0347408 | C141: 8.91652678 | D141: 7.751300281 | E141: 13.00807912 | F141: 0.1560062468 | G141: 3.372631702 | I141: 21.6185683 | J141: 53.08458101 | K141: 2.643789055 | L141: 2.298294319 | M141: 3.856952157
A142: 7 | B142: 180.0590406 | C142: 8.940578081 | D142: 7.771471868 | E142: 13.06495618 | F142: 0.1560062468 | G142: 3.381113915 | I142: 21.67293929 | J142: 53.25435497 | K142: 2.644269997 | L142: 2.298494538 | M142: 3.864098195
A143: 7.05 | B143: 181.0787267 | C143: 8.964475142 | D143: 7.791514253 | E143: 13.12145715 | F143: 0.1560062468 | G143: 3.389541857 | I143: 21.72696239 | J143: 53.42277345 | K143: 2.644745373 | L143: 2.298692444 | M143: 3.871159499
A144: 7.1 | B144: 182.093799 | C144: 8.988218998 | D144: 7.811428302 | E144: 13.17758471 | F144: 0.1560062468 | G144: 3.397915892 | I144: 21.78063996 | J144: 53.58984882 | K144: 2.645215268 | L144: 2.298888068 | M144: 3.878137403
A145: 7.15 | B145: 183.1042575 | C145: 9.011810675 | D145: 7.831214871 | E145: 13.2333415 | F145: 0.1560062468 | G145: 3.40623638 | I145: 21.83397428 | J145: 53.75559327 | K145: 2.645679768 | L145: 2.299081449 | M145: 3.885033222
A146: 7.2 | B146: 184.1101151 | C146: 9.03525119 | D146: 7.850874812 | E146: 13.28873014 | F146: 0.1560062468 | G146: 3.414503673 | I146: 21.88696762 | J146: 53.92002258 | K146: 2.646138957 | L146: 2.299272622 | M146: 3.891848248
A147: 7.25 | B147: 185.111372 | C147: 9.058541553 | D147: 7.870408968 | E147: 13.34375323 | F147: 0.1560062468 | G147: 3.422718128 | I147: 21.93962228 | J147: 54.08314828 | K147: 2.646592917 | L147: 2.299461619 | M147: 3.898583736
A148: 7.3 | B148: 186.1080411 | C148: 9.081682769 | D148: 7.889818177 | E148: 13.39841335 | F148: 0.1560062468 | G148: 3.430880093 | I148: 21.99194047 | J148: 54.24498557 | K148: 2.647041728 | L148: 2.299648476 | M148: 3.905240926
A149: 7.35 | B149: 187.1001225 | C149: 9.104675832 | D149: 7.909103272 | E149: 13.45271307 | F149: 0.1560062468 | G149: 3.438989921 | I149: 22.04392447 | J149: 54.40554546 | K149: 2.647485466 | L149: 2.299833223 | M149: 3.911821024
A150: 7.4 | B150: 188.087629 | C150: 9.127521732 | D150: 7.928265078 | E150: 13.50665493 | F150: 0.1560062468 | G150: 3.447047954 | I150: 22.09557646 | J150: 54.56484258 | K150: 2.647924211 | L150: 2.300015893 | M150: 3.91832522
A151: 7.45 | B151: 189.0705737 | C151: 9.15022145 | D151: 7.947304416 | E151: 13.56024145 | F151: 0.1560062468 | G151: 3.455054539 | I151: 22.14689866 | J151: 54.72289121 | K151: 2.648358035 | L151: 2.300196517 | M151: 3.924754674
A152: 7.5 | B152: 190.0489566 | C152: 9.172775962 | D152: 7.966222103 | E152: 13.61347513 | F152: 0.1560062468 | G152: 3.463010021 | I152: 22.1978933 | J152: 54.8797016 | K152: 2.648787011 | L152: 2.300375123 | M152: 3.931110522
A153: 7.55 | B153: 191.0227777 | C153: 9.195186235 | D153: 7.985018947 | E153: 13.66635846 | F153: 0.1560062468 | G153: 3.470914736 | I153: 22.24856252 | J153: 55.03528385 | K153: 2.649211212 | L153: 2.300551744 | M153: 3.937393885
A154: 7.6 | B154: 191.99205 | C154: 9.21745323 | D154: 8.00369575 | E154: 13.71889389 | F154: 0.1560062468 | G154: 3.478769015 | I154: 22.29890845 | J154: 55.18965161 | K154: 2.649630714 | L154: 2.30072641 | M154: 3.943605863
A155: 7.65 | B155: 192.9567865 | C155: 9.239577898 | D155: 8.022253306 | E155: 13.77108386 | F155: 0.1560062468 | G155: 3.486573195 | I155: 22.34893324 | J155: 55.3428182 | K155: 2.650045583 | L155: 2.300899151 | M155: 3.949747529
A156: 7.7 | B156: 193.9170002 | C156: 9.261561186 | D156: 8.040692408 | E156: 13.82293082 | F156: 0.1560062468 | G156: 3.49432761 | I156: 22.39863904 | J156: 55.49479665 | K156: 2.650455887 | L156: 2.301069993 | M156: 3.955819934
A157: 7.75 | B157: 194.872691 | C157: 9.283404037 | D157: 8.059013844 | E157: 13.87443714 | F157: 0.1560062468 | G157: 3.502032592 | I157: 22.44802797 | J157: 55.64559607 | K157: 2.65086169 | L157: 2.301238961 | M157: 3.961824106
A158: 7.8 | B158: 195.8238721 | C158: 9.305107382 | D158: 8.077218393 | E158: 13.92560524 | F158: 0.1560062468 | G158: 3.509688465 | I158: 22.49710212 | J158: 55.79522913 | K158: 2.651263061 | L158: 2.301406086 | M158: 3.967761064
A159: 7.85 | B159: 196.7705563 | C159: 9.326672149 | D159: 8.09530683 | E159: 13.97643746 | F159: 0.1560062468 | G159: 3.517295555 | I159: 22.54586356 | J159: 55.94370825 | K159: 2.651660062 | L159: 2.301571393 | M159: 3.9736318
A160: 7.9 | B160: 197.7127438 | C160: 9.348099258 | D160: 8.113279925 | E160: 14.02693617 | F160: 0.1560062468 | G160: 3.524854186 | I160: 22.59431438 | J160: 56.09104188 | K160: 2.652052756 | L160: 2.301734908 | M160: 3.979437285
A161: 7.95 | B161: 198.6504474 | C161: 9.369389623 | D161: 8.131138442 | E161: 14.07710369 | F161: 0.1560062468 | G161: 3.532364675 | I161: 22.64245662 | J161: 56.23724208 | K161: 2.652441207 | L161: 2.301896659 | M161: 3.985178482
A162: 8 | B162: 199.5836801 | C162: 9.39054415 | D162: 8.148883138 | E162: 14.12694234 | F162: 0.1560062468 | G162: 3.53982734 | I162: 22.6902923 | J162: 56.38232065 | K162: 2.652825476 | L162: 2.30205667 | M162: 3.990856328
A163: 8.05 | B163: 200.5124551 | C163: 9.411563739 | D163: 8.166514766 | E163: 14.17645441 | F163: 0.1560062468 | G163: 3.5472425 | I163: 22.73782347 | J163: 56.52628911 | K163: 2.653205621 | L163: 2.302214965 | M163: 3.996471741
A164: 8.1 | B164: 201.4367722 | C164: 9.432449286 | D164: 8.184034076 | E164: 14.22564217 | F164: 0.1560062468 | G164: 3.554610469 | I164: 22.78505215 | J164: 56.66915516 | K164: 2.653581699 | L164: 2.302371567 | M164: 4.002025622
A165: 8.15 | B165: 202.3566445 | C165: 9.453201678 | D165: 8.201441809 | E165: 14.2745079 | F165: 0.1560062468 | G165: 3.561931554 | I165: 22.8319803 | J165: 56.81093009 | K165: 2.653953771 | L165: 2.302526504 | M165: 4.007518865
A166: 8.2 | B166: 203.2720849 | C166: 9.473821795 | D166: 8.2187387 | E166: 14.32305382 | F166: 0.1560062468 | G166: 3.569206065 | I166: 22.87860991 | J166: 56.95162488 | K166: 2.654321892 | L166: 2.302679798 | M166: 4.012952337
A167: 8.25 | B167: 204.1831065 | C167: 9.494310513 | D167: 8.235925483 | E167: 14.37128217 | F167: 0.1560062468 | G167: 3.576434309 | I167: =G167/F167 -> 22.92494296 | J167: =B167/G167 -> 57.09125036 | K167: =C167/G167 -> 2.654686118 | L167: =D167/G167 -> 2.302831471 | M167: =E167/G167 -> 4.018326893
A168: 8.3 | B168: 205.0897093 | C168: 9.514668702 | D168: 8.253002883 | E168: 14.41919515 | F168: 0.1560062468 | G168: 3.583616594 | I168: 22.9709814 | J168: 57.22981349 | K168: 2.655046502 | L168: 2.302981546 | M168: 4.023643369
A169: 8.35 | B169: 205.9919192 | C169: 9.534897222 | D169: 8.269971621 | E169: 14.46679495 | F169: 0.1560062468 | G169: 3.590753217 | I169: 23.01672715 | J169: 57.36732847 | K169: 2.6554031 | L169: 2.303130046 | M169: 4.028902594
A170: 8.4 | B170: 206.8897363 | C170: 9.554996931 | D170: 8.286832415 | E170: 14.51408375 | F170: 0.1560062468 | G170: 3.597844484 | I170: 23.06218217 | J170: 57.50380186 | K170: 2.65575596 | L170: 2.303276991 | M170: 4.034105369
A171: 8.45 | B171: 207.7831735 | C171: 9.57496868 | D171: 8.303585975 | E171: 14.5610637 | F171: 0.1560062468 | G171: 3.60489069 | I171: 23.10734835 | J171: 57.63924386 | K171: 2.656105137 | L171: 2.303422403 | M171: 4.039252492
A172: 8.5 | B172: 208.6722439 | C172: 9.594813312 | D172: 8.320233007 | E172: 14.60773695 | F172: 0.1560062468 | G172: 3.611892131 | I172: 23.15222758 | J172: 57.77366443 | K172: 2.656450682 | L172: 2.303566304 | M172: 4.044344742
A173: 8.55 | B173: 209.5569604 | C173: 9.614531667 | D173: 8.336774213 | E173: 14.65410561 | F173: 0.1560062468 | G173: 3.618849102 | I173: 23.19682177 | J173: 57.90707337 | K173: 2.656792642 | L173: 2.303708715 | M173: 4.049382884
A174: 8.6 | B174: 210.4373361 | C174: 9.634124577 | D174: 8.35321029 | E174: 14.7001718 | F174: 0.1560062468 | G174: 3.625761896 | I174: 23.24113278 | J174: 58.03948029 | K174: 2.657131067 | L174: 2.303849654 | M174: 4.054367668
A175: 8.65 | B175: 211.3133839 | C175: 9.653592868 | D175: 8.369541929 | E175: 14.74593761 | F175: 0.1560062468 | G175: 3.632630805 | I175: 23.28516248 | J175: 58.17089467 | K175: 2.657466004 | L175: 2.303989141 | M175: 4.059299831
A176: 8.7 | B176: 212.1851038 | C176: 9.672937364 | D176: 8.385769818 | E176: 14.79140511 | F176: 0.1560062468 | G176: 3.639456116 | I176: 23.32891272 | J176: 58.30132225 | K176: 2.657797499 | L176: 2.304127197 | M176: 4.064180098
A177: 8.75 | B177: 213.0525219 | C177: 9.692158878 | D177: 8.401894637 | E177: 14.83657637 | F177: 0.1560062468 | G177: 3.646238111 | I177: 23.37238531 | J177: 58.43077589 | K177: 2.658125603 | L177: 2.304263842 | M177: 4.069009186
A178: 8.8 | B178: 213.9156381 | C178: 9.711258219 | D178: 8.417917066 | E178: 14.88145342 | F178: 0.1560062468 | G178: 3.652977079 | I178: 23.41558209 | J178: 58.55926097 | K178: 2.658450357 | L178: 2.304399092 | M178: 4.07378779
A179: 8.85 | B179: 214.7744784 | C179: 9.730236192 | D179: 8.433837773 | E179: 14.9260383 | F179: 0.1560062468 | G179: 3.659673298 | I179: 23.45850485 | J179: 58.68679004 | K179: 2.658771808 | L179: 2.30453297 | M179: 4.078516602
A180: 8.9 | B180: 215.6290429 | C180: 9.749093595 | D180: 8.449657429 | E180: 14.97033302 | F180: 0.1560062468 | G180: 3.666327052 | I180: 23.50115542 | J180: 58.8133682 | K180: 2.659089998 | L180: 2.304665489 | M180: 4.083196291
A181: 8.95 | B181: 216.4793444 | C181: 9.767831219 | D181: 8.465376696 | E181: 15.01433958 | F181: 0.1560062468 | G181: 3.672938617 | I181: 23.54353554 | J181: 58.93900417 | K181: 2.659404972 | L181: 2.304796671 | M181: 4.087827526
A182: 9 | B182: 217.3254091 | C182: 9.786449852 | D182: 8.480996231 | E182: 15.05805996 | F182: 0.1560062468 | G182: 3.679508265 | I182: 23.58564699 | J182: 59.06371 | K182: 2.659716774 | L182: 2.304926533 | M182: 4.092410961
A183: 9.05 | B183: 218.1672499 | C183: 9.804950276 | D183: 8.496516689 | E183: 15.10149612 | F183: 0.1560062468 | G183: 3.68603628 | I183: 23.62749156 | J183: 59.18749392 | K183: 2.66002544 | L183: 2.30505509 | M183: 4.096947228
A184: 9.1 | B184: 219.0048538 | C184: 9.823333268 | D184: 8.511938723 | E184: 15.14465003 | F184: 0.1560062468 | G184: 3.692522934 | I184: 23.66907101 | J184: 59.31035709 | K184: 2.66033101 | L184: 2.305182358 | M184: 4.101436957
A185: 9.15 | B185: 219.8382468 | C185: 9.841599597 | D185: 8.527262973 | E185: 15.18752361 | F185: 0.1560062468 | G185: 3.698968486 | I185: 23.710387 | J185: 59.43231137 | K185: 2.660633534 | L185: 2.30530836 | M185: 4.105880779
A186: 9.2 | B186: 220.6674549 | C186: 9.859750026 | D186: 8.542490077 | E186: 15.2301188 | F186: 0.1560062468 | G186: 3.705373208 | I186: 23.75144126 | J186: 59.55336819 | K186: 2.660933049 | L186: 2.30543311 | M186: 4.110279301
A187: 9.25 | B187: 221.4924781 | C187: 9.877785317 | D187: 8.557620674 | E187: 15.27243749 | F187: 0.1560062468 | G187: 3.711737373 | I187: 23.79223556 | J187: 59.67353179 | K187: 2.661229587 | L187: 2.30555662 | M187: 4.114633111
A188: 9.3 | B188: 222.3133424 | C188: 9.895706225 | D188: 8.572655394 | E188: 15.3144816 | F188: 0.1560062468 | G188: 3.718061242 | I188: 23.83277156 | J188: 59.7928135 | K188: 2.661523192 | L188: 2.305678911 | M188: 4.118942804
A189: 9.35 | B189: 223.1300478 | C189: 9.913513499 | D189: 8.587594867 | E189: 15.35625299 | F189: 0.1560062468 | G189: 3.724345084 | I189: 23.87305098 | J189: 59.91121736 | K189: 2.661813896 | L189: 2.305799993 | M189: 4.123208951
A190: 9.4 | B190: 223.9426203 | C190: 9.931207884 | D190: 8.602439715 | E190: 15.39775353 | F190: 0.1560062468 | G190: 3.730589153 | I190: 23.91307547 | J190: 60.02875447 | K190: 2.662101742 | L190: 2.305919886 | M190: 4.127432128
A191: 9.45 | B191: 224.7510599 | C191: 9.948790119 | D191: 8.617190556 | E191: 15.43898507 | F191: 0.1560062468 | G191: 3.736793716 | I191: 23.95284671 | J191: 60.14542866 | K191: 2.662386761 | L191: 2.306038602 | M191: 4.131612887
A192: 9.5 | B192: 225.5553665 | C192: 9.966260938 | D192: 8.631848005 | E192: 15.47994946 | F192: 0.1560062468 | G192: 3.742959023 | I192: 23.99236633 | J192: 60.26124388 | K192: 2.662668994 | L192: 2.306156159 | M192: 4.135751785
A193: 9.55 | B193: 226.3555922 | C193: 9.983621065 | D193: 8.646412665 | E193: 15.52064851 | F193: 0.1560062468 | G193: 3.749085322 | I193: 24.0316359 | J193: 60.37621788 | K193: 2.662948481 | L193: 2.306272577 | M193: 4.139849372
A194: 9.6 | B194: 227.151711 | C194: 10.00087123 | D194: 8.660885147 | E194: 15.56108405 | F194: 0.1560062468 | G194: 3.755172885 | I194: 24.07065718 | J194: 60.49034705 | K194: 2.663225245 | L194: 2.306387858 | M194: 4.143906159
A195: 9.65 | B195: 227.9437749 | C195: 10.01801214 | D195: 8.675266047 | E195: 15.60125785 | F195: 0.1560062468 | G195: 3.761221948 | I195: 24.10943167 | J195: 60.60364904 | K195: 2.663499331 | L195: 2.306502027 | M195: 4.147922688
A196: 9.7 | B196: 228.7317838 | C196: 10.03504452 | D196: 8.689555967 | E196: 15.64117172 | F196: 0.1560062468 | G196: 3.767232777 | I196: 24.14796109 | J196: 60.71612703 | K196: 2.663770761 | L196: 2.306615089 | M196: 4.151899455
A197: 9.75 | B197: 229.5157378 | C197: 10.05196908 | D197: 8.703755501 | E197: 15.68082741 | F197: 0.1560062468 | G197: 3.773205618 | I197: 24.186247 | J197: 60.8277844 | K197: 2.664039571 | L197: 2.30672706 | M197: 4.155836971
A198: 9.8 | B198: 230.2956629 | C198: 10.06878651 | D198: 8.717865237 | E198: 15.72022669 | F198: 0.1560062468 | G198: 3.779140711 | I198: 24.22429094 | J198: 60.93863143 | K198: 2.664305799 | L198: 2.306837957 | M198: 4.159735742
A199: 9.85 | B199: 231.071559 | C199: 10.08549753 | D199: 8.731885758 | E199: 15.7593713 | F199: 0.1560062468 | G199: 3.785038304 | I199: 24.26209451 | J199: 61.04867123 | K199: 2.664569475 | L199: 2.306947792 | M199: 4.163596252
A200: 9.9 | B200: 231.8434522 | C200: 10.10210281 | D200: 8.745817644 | E200: 15.79826297 | F200: 0.1560062468 | G200: 3.790898636 | I200: 24.29965924 | J200: 61.15791385 | K200: 2.664830632 | L200: 2.30705658 | M200: 4.167418991
... 7 more rows

Sheet Graphs
H20: P( | I20: 50.61674397 | J20: )
H21: CWB= | I21: 8.028787777 | J21: mol/m3
H22: TIME= | I22: 3.15 | J22: Hours
H41: P( | I41: 52.03721296 | J41: )
H42: CLWB= | I42: 121.4120793 | J42: mol/m3
H43: TIME= | I43: 3.2 | J43: Hours
H61: P( | I61: 51.70906647 | J61: )
H62: CM= | I62: 91.8993065 | J62: mol/m3
H63: TIME= | I63: 3.3 | J63: Hours
H81: P( | I81: 52.1940602 | J81: )
H82: VML= | I82: 1.316468178 | J82: %
H83: TIME= | I83: 3.2 | J83: Hours
H102: P( | I102: 52.14925003 | J102: )
H103: Activity= | I103: 0.04657088722
H104: TIME= | I104: 3.299999952 | J104: Hours

Sheet Parameters Summary
B1: Summary of relevant parameters
B3: Concentration in water: | C3: ='Test Conditions'!C4 -> 20 | D3: mg/L or g/m3 | F3: fw: | G3: ='Steady State Output'!C4 -> 6.708268331 | H3: Pa
B4: Test time: | C4: ='Test Conditions'!C6*'Test Conditions'!C7 -> 10 | D4: hours
B5: Organism mass: | C5: =Organism!C17*1000 -> 0.6 | D5: g or cm^3
B7: Parameters | C7: Blood | D7: Membrane | E7: Liver | F7: Fast | G7: Slow | H7: Total
B8: Volume % | D8: =Organism!C20*100 -> 1 | E8: =Organism!C21*100 -> 1.3 | F8: =Organism!C22*100 -> 7 | G8: =Organism!C23*100 -> 90.7 | H8: =SUM(C8:G8) -> 100
B9: Volume (cm^3) | D9: =Organism!C48 -> 0.006 | E9: =Organism!C49 -> 0.0078 | F9: =Organism!C50 -> 0.042 | G9: =Organism!C51 -> 0.5442 | H9: =SUM(C9:G9) -> 0.6
B10: Lipid % | D10: =Organism!C26*100 -> 100 | E10: =Organism!C27*100 -> 3.5 | F10: =Organism!C28*100 -> 3 | G10: =Organism!C29*100 -> 6 | H10: 112.5
B11: Lipid volume cm^3 | D11: =Organism!C54 -> 0.006 | E11: =Organism!C55 -> 0.000273 | F11: =Organism!C56 -> 0.00126 | G11: =Organism!C57 -> 0.032652 | H11: 0.040185
B12: % of Cardiac Output | D12: =Chemical!C38 -> 7 | E12: =Chemical!C39 -> 3 | F12: =Chemical!C40 -> 25 | G12: =Chemical!C41 -> 65 | H12: 100
B13: Blood flow cm^3/h | D13: =Chemical!C44 -> 0.11522 | E13: =Chemical!C45 -> 0.04938 | F13: =Chemical!C46 -> 0.4115 | G13: =Chemical!C47 -> 1.0699 | H13: 1.646
B14: V | D14: =Organism!C18*Organism!C20 -> 6e-09 | E14: =Organism!C18*Organism!C21 -> 7.8e-09 | F14: =Organism!C18*Organism!C22 -> 4.2e-08 | G14: =Organism!C18*Organism!C23 -> 5.442e-07 | H14: 6e-07
B15: Z | C15: =Chemical!C29 -> 0.7046511628 | D15: =Chemical!C30 -> 54.51162791 | E15: =Chemical!C31 -> 1.907906977 | F15: =Chemical!C32 -> 1.635348837 | G15: =Chemical!C33 -> 3.270697674
B16: D | D16: =Chemical!C60 -> 8.118990698e-08 | E16: =Chemical!C61 -> 3.479567442e-08 | F16: =Chemical!C62 -> 2.899639535e-07 | G16: =Chemical!C63 -> 7.539062791e-07
B17: VZ | D17: =Chemical!C68 -> 3.270697674e-07 | E17: =Chemical!C69 -> 1.488167442e-08 | F17: =Chemical!C70 -> 6.868465116e-08 | G17: =Chemical!C71 -> 1.779913674e-06
B18: T=VZ/D | D18: =Chemical!C74 -> 4.028453531 | E18: =Chemical!C75 -> 0.4276874832 | F18: =Chemical!C76 -> 0.2368730676 | G18: =Chemical!C77 -> 2.360921674
B19: Liver metabolism D-value | E19: =Chemical!C64 -> 1.265042491e-10
B20: T=VZ/(Dml+Dbl) for Liver | E20: =Chemical!C79 -> 0.4261382017
B22: Fugacity (steady-state) | C22: ='Steady State Output'!C6 -> 6.706167616 | D22: ='Steady State Output'!C7 -> 6.706167616 | E22: ='Steady State Output'!C5 -> 6.681874782 | F22: ='Steady State Output'!C8 -> 6.706167616 | G22: ='Steady State Output'!C9 -> 6.706167616
B23: Concentration (steady-state) | C23: ='Steady State Output'!G6 -> 4.725508809 | D23: ='Steady State Output'!G7 -> 365.5641138 | E23: ='Steady State Output'!G5 -> 12.74839551 | F23: ='Steady State Output'!G8 -> 10.96692341 | G23: ='Steady State Output'!G9 -> 21.93384683
B24: Fugacity at 50 hours | C24: =Fugacities!E52 -> 3.331702501 | D24: =Fugacities!F52 -> 1.281469703 | E24: =Fugacities!G52 -> 3.142996292 | F24: =Fugacities!H52 -> 3.248441297 | G24: =Fugacities!I52 -> 1.84821789
B25: Concentration at test time(mol/m^3) | C25: ='Compartment Concentrations'!G52 -> 2.347688041 | D25: ='Compartment Concentrations'!B52 -> 69.85499961 | E25: ='Compartment Concentrations'!C52 -> 5.996544554 | F25: ='Compartment Concentrations'!D52 -> 5.312334698 | G25: ='Compartment Concentrations'!E52 -> 6.044961954
B26: Concentration at test time(g/m^3) | C26: =C25*Chemical!$C$5 -> 300.9736069 | D26: =D25*Chemical!$C$5 -> 8955.41095 | E26: =E25*Chemical!C5 -> 768.7570118 | F26: =F25*Chemical!C5 -> 681.0413082 | G26: =G25*Chemical!C5 -> 774.9641225
B27: Fraction of steady-state completed
B28: (=f @ test time/ f @ steady-state) | C28: =C24/C22 -> 0.496811695 | D28: =D24/D22 -> 0.1910882304 | E28: =E24/E22 -> 0.470376413 | F28: =F24/F22 -> 0.4843960788 | G28: =G24/G22 -> 0.2755997159

Sheet Fish Database
A1: Fish properties database
A2: Organism | B2: Organism Latin name | C2: Organism volume (cm3) | D2: Reference | E2: Gill ventilation rate (L/d) | F2: Reference | G2: Cardiac output (cm3/h) | H2: Reference | I2: Volume Fractions | Q2: Lipid fractions | Y2: % Cardiac output | AG2: Blood lipid fraction | AH2: Reference
I3: Membrane | J3: Reference | K3: Liver | L3: Reference | M3: Richly perfused | N3: Reference | O3: Poorly perfused | P3: Reference | Q3: Membrane | R3: Reference | S3: Liver | T3: Reference | U3: Richly perfused | V3: Reference | W3: Poorly perfused | X3: Reference | Y3: Membrane | Z3: Reference | AA3: Liver | AB3: Reference | AC3: Richly perfused | AD3: Reference | AE3: Poorly perfused | AF3: Reference
A4: Fathead Minnow | B4: Pimephales promelas | C4: 0.6 | D4: [1] | E4: 1.52 | F4: [3] | G4: 1.646 | H4: [4] | I4: 0.01 | J4: [4][5] | K4: 0.013 | L4: [2] | M4: 0.07 | N4: [2] | O4: 0.907 | P4: [2] | Q4: 1 | R4: [5] | S4: 0.035 | T4: [2] | U4: 0.03 | V4: [2] | W4: 0.095 | X4: [1] | Y4: 7 | Z4: - | AA4: 3 | AB4: [2] | AC4: 25 | AD4: [2] | AE4: 65 | AF4: [2] | AG4: 0.0125 | AH4: [4]
A5: Rainbow Trout | B5: Oncorhynchus mykiss | C5: 1000 | D5: [2] | E5: 230 | F5: [2] | G5: 2070 | H5: [2] | I5: 0.01 | J5: [4][5] | K5: 0.013 | L5: [2] | M5: 0.07 | N5: [2] | O5: 0.907 | P5: [2] | Q5: 1 | R5: [5] | S5: 0.035 | T5: [2] | U5: 0.03 | V5: [2] | W5: 0.06 | X5: [2] | Y5: 7 | Z5: - | AA5: 3 | AB5: [2] | AC5: 25 | AD5: [2] | AE5: 65 | AF5: [2] | AG5: 0.0125 | AH5: [4]
A36: References:
A37: [1] | B37: de Maagd P, van de Klundert I, van Wezel A, Opperhuizen A, Sijm D. 1997. Lipid content and time-to-death–dependent lethal body burdens of naphthalene and 1,2,4-trichlorobenzene in fathead minnow (Pimephales promelas).Ecotoxicol Environ Saf 38:232–237.
A38: [2] | B38: Nichols JW, McKim JM, Andersen ME, Gargas ML, Clewell HJ III,Erickson RJ. 1990. A physiologically based toxicokinetic model for the uptake and disposition of waterborne organic chemicals in fish.Toxicol Appl Pharmacol 106:433–447.
A39: [3] | B39: Arnot J, Gobas F. 2004. A food web bioaccumulation model for organic chemicals in aquatic ecosystems. Environ Toxicol Chem 23:2343–2355.
A40: [4] | B40: Krishnan K, Peyret T. 2009. Physiologically-based toxicokinetic (PBTK) modeling in ecotoxicology. In Devillers J, ed, Emerging Topics in Ecotoxicology: Principles, Approaches and Perspectives, Vol 2—Ecotoxicology Modeling. Springer, New York, NY, USA, pp 145–175.
A41: [5] | B41: Heijden SS, Hermens JLM, Sinnige TL, Mayer P, Gilbert D, Jonker TO.2015. Determining high-quality critical body residues for multiple species and chemicals by applying improved experimental design and data interpretation concepts. Environ Sci Technol 49:1879–1887.
